{"text_format":"1","workbook":"xlsx","n_sheets":1,"sheets":["راس گیری چک"],"not_rendered":{"charts":0,"images":4,"macros":1,"external_links":0,"defined_names":13,"comments":1,"pivot_tables":0},"unopened":[],"bounds":{"document_bytes":16777216,"sheet_cells":100000,"rows_first":2000,"rows_last":500,"rows_between":2000,"halvings":0,"cell_chars":16384,"cell_head_chars":4096},"cells_cut":0,"cells_raw":0,"read":"whole","date_system":"1900"}

{"sheet":"راس گیری چک","index":0,"n_rows":510,"n_cols":28,"rows_kept":510,"cut":false,"hidden":false,"merged":[[9,9,9,10],[12,9,12,10],[9,11,9,12],[1,12,1,20],[4,15,5,16],[4,14,5,14],[1,1,1,9],[8,9,8,10],[5,8,5,9],[3,3,3,5],[4,4,5,5],[4,3,5,3],[5,19,5,20],[8,11,8,12],[3,14,3,16],[11,11,11,12],[14,8,21,13],[22,8,23,13],[11,9,11,10],[13,9,13,10],[10,11,10,12],[12,11,12,12],[13,11,13,12],[10,9,10,10]]}
[]
[null,"در این قسمت تاریخ و مبلغ خرید یا فروش را وارد نمایید.",null,null,null,null,null,null,null,null,null,null,"در این قسمت تاریخ و مبلغ چک های دریافتی یا پرداختی را وارد نمایید."]
[]
[null,"تاریخ امروز",{"$f":"shamsi()","v":"1404/07/21"},"تعداد روز مورد قبول",null,null,null,null,-60,{"$f":"IF(ABS(I5)<=ABS(I4),\"تایید\",\"رد\")","v":"تایید"},null,null,"تاریخ امروز",{"$f":"shamsi()","v":"1404/07/21"},"تعداد روز مورد قبول",null,null,null,null,30,{"$f":"IF(ABS(T5)<=ABS(T4),\"تایید\",\"رد\")","v":"تایید"}]
[null,null,"تاریخ مبنا","جمع ",{"$f":"SUM(E8:E510)","v":7712724200},null,null,null,{"$f":"H7/E5","v":-31.387395182625614},"راس ",null,null,null,"تاریخ مبنا","جمع ",{"$f":"SUM(P8:P509)","v":5520000000},null,null,null,{"$f":"S7/P5","v":17.481884057971016},"راس "]
[null,"شمسی",14040721,null,null,null,null,null,{"$f":"C7+I5","v":"2025-09-11T14:42:09.056"},null,null,null,"شمسی",14040721,null,null,null,null,null,{"$f":"N7+T5","v":"2025-10-30T11:33:54.783"}]
[null,"میلادی",{"$f":"ShamsiToMiladi(C6)","v":"2025/10/13"},"تاریخ ","مبلغ ","اختلاف با تاریخ محاسبه","Column4",{"$f":"SUM(G8:G500)","v":-242082322400},{"$f":"I5/30","v":-1.0462465060875206},"ماه",null,null,"میلادی",{"$f":"ShamsiToMiladi(N6)","v":"2025/10/13"},"تاریخ","مبلغ","اختلاف با تاریخ محاسبه","Column4",{"$f":"SUM(R8:R250)","v":96500000000},{"$f":"T5/30","v":0.58272946859903385},"ماه"]
[null,null,null,14040611,820380000,{"$f":"IF(OR(tarikh=\"\",D8=\"\"), \"\", Diff(tarikh,D8 ))","v":-41},{"$f":"F8*E8","v":-33635580000},null,null,null,null,null,null,null,14040725,720000000,{"$f":"IF(OR(tarihk2=\"\",'راس گیری چک'!$O8=\"\"), \"\", Diff(tarihk2,'راس گیری چک'!$O8))","v":4},{"$f":"Q8*P8","v":2880000000}]
[null,null,null,14040617,928700000,{"$f":"IF(OR(tarikh=\"\",D9=\"\"), \"\", Diff(tarikh,D9 ))","v":-35},{"$f":"F9*E9","v":-32504500000},null,null,14040621,null,"تاریخ اول",null,null,14040728,160000000,{"$f":"IF(OR(tarihk2=\"\",'راس گیری چک'!$O9=\"\"), \"\", Diff(tarihk2,'راس گیری چک'!$O9))","v":7},1120000000]
[null,{"$f":"I5","v":-31.387395182625614},"راس",14040620,1159845000,{"$f":"IF(OR(tarikh=\"\",D10=\"\"), \"\", Diff(tarikh,D10 ))","v":-32},{"$f":"F10*E10","v":-37115040000},null,null,14040808,null,"تاریخ دوم",null,null,14040730,600000000,{"$f":"IF(OR(tarihk2=\"\",'راس گیری چک'!$O10=\"\"), \"\", Diff(tarihk2,'راس گیری چک'!$O10))","v":9},5400000000,null,null,null,null,null,null,null,null,2,2]
[null,0.2,null,14040620,1223028200,{"$f":"IF(OR(tarikh=\"\",D11=\"\"), \"\", Diff(tarikh,D11 ))","v":-32},{"$f":"F11*E11","v":-39136902400},null,null,{"$f":"Diff(J10,J9)","v":-48},null,"اختلاف تاریخ",null,null,14040730,630000000,{"$f":"IF(OR(tarihk2=\"\",'راس گیری چک'!$O11=\"\"), \"\", Diff(tarihk2,'راس گیری چک'!$O11))","v":9},5670000000,null,null,null,null,null,null,null,null,2,2]
[null,{"$f":"E5 * 0.2%","v":15425448.4},"درصد مابه تفاوت",14040627,404976000,{"$f":"IF(OR(tarikh=\"\",D12=\"\"), \"\", Diff(tarikh,D12 ))","v":-25},-10124400000,null,null,0.2,null,"درصد محاسبه ",null,null,14040808,630000000,{"$f":"IF(OR(tarihk2=\"\",'راس گیری چک'!$O12=\"\"), \"\", Diff(tarihk2,'راس گیری چک'!$O12))","v":17},10710000000,null,null,null,null,null,null,null,null,2,2]
[null,{"$f":"B10*B12","v":-484164644.80000001},"جمع مابه تفاوت",14040701,1275795000,{"$f":"IF(OR(tarikh=\"\",D13=\"\"), \"\", Diff(tarikh,D13 ))","v":-20},-25515900000,null,null,{"$f":"P5 * 0.2%","v":11040000},null,"مبلغ درصد مابه تفاوت روزانه ",null,null,14040808,150000000,{"$f":"IF(OR(tarihk2=\"\",'راس گیری چک'!$O13=\"\"), \"\", Diff(tarihk2,'راس گیری چک'!$O13))","v":17},2550000000,null,null,null,null,null,null,null,null,2,2]
[null,{"$f":"ABS(SUM(E5)+ABS(SUM(B13)))","v":8196888844.8000002},"جمع بد یا  بس",14040610,850000000,{"$f":"IF(OR(tarikh=\"\",D14=\"\"), \"\", Diff(tarikh,D14 ))","v":-42},-35700000000,null,null,{"$f":"J13*J11","v":-529920000},null,"جمع مابه تفاوت",null,null,14040810,600000000,{"$f":"IF(OR(tarihk2=\"\",'راس گیری چک'!$O14=\"\"), \"\", Diff(tarihk2,'راس گیری چک'!$O14))","v":19},11400000000]
[null,null,null,14040625,1050000000,{"$f":"IF(OR(tarikh=\"\",D15=\"\"), \"\", Diff(tarikh,D15 ))","v":-27},-28350000000,null,"با عرض سلام و احترام\nقبل از استفاده حتما فیلم اموزش رو ببینید.\nاستفاده شخصی با ذکر صلوات برای سلامتی امام زمان (عج) رایگان می باشد.\nشماره تماس: 09052881958\nشماره کارت جهت حمایت و تولید برنامه ها\n6104-3379-1832-8368\nعلی حسن پیروزبهر",null,null,null,null,null,14040810,670000000,{"$f":"IF(OR(tarihk2=\"\",'راس گیری چک'!$O15=\"\"), \"\", Diff(tarihk2,'راس گیری چک'!$O15))","v":19},12730000000]
[null,null,null,0,0,{"$f":"IF(OR(tarikh=\"\",D16=\"\"), \"\", Diff(tarikh,D16 ))","v":0},0,null,null,null,null,null,null,null,14040815,600000000,{"$f":"IF(OR(tarihk2=\"\",'راس گیری چک'!$O16=\"\"), \"\", Diff(tarihk2,'راس گیری چک'!$O16))","v":24},14400000000]
[null,null,null,0,0,{"$f":"IF(OR(tarikh=\"\",D17=\"\"), \"\", Diff(tarikh,D17 ))","v":0},0,null,null,null,null,null,null,null,14040830,760000000,{"$f":"IF(OR(tarihk2=\"\",'راس گیری چک'!$O17=\"\"), \"\", Diff(tarihk2,'راس گیری چک'!$O17))","v":39},29640000000]
[null,null,null,null,null,{"$f":"IF(OR(tarikh=\"\",D18=\"\"), \"\", Diff(tarikh,D18 ))","v":""},null,null,null,null,null,null,null,null,0,0,{"$f":"IF(OR(tarihk2=\"\",'راس گیری چک'!$O18=\"\"), \"\", Diff(tarihk2,'راس گیری چک'!$O18))","v":0},0]
[null,null,null,null,null,{"$f":"IF(OR(tarikh=\"\",D19=\"\"), \"\", Diff(tarikh,D19 ))","v":""},null,null,null,null,null,null,null,null,null,null,{"$f":"IF(OR(tarihk2=\"\",'راس گیری چک'!$O19=\"\"), \"\", Diff(tarihk2,'راس گیری چک'!$O19))","v":""}]
[null,null,null,null,null,{"$f":"IF(OR(tarikh=\"\",D20=\"\"), \"\", Diff(tarikh,D20 ))","v":""},null,null,null,null,null,null,null,null,null,null,{"$f":"IF(OR(tarihk2=\"\",'راس گیری چک'!$O20=\"\"), \"\", Diff(tarihk2,'راس گیری چک'!$O20))","v":""}]
[null,null,null,null,null,{"$f":"IF(OR(tarikh=\"\",D21=\"\"), \"\", Diff(tarikh,D21 ))","v":""},null,null,null,null,null,null,null,null,null,null,{"$f":"IF(OR(tarihk2=\"\",'راس گیری چک'!$O21=\"\"), \"\", Diff(tarihk2,'راس گیری چک'!$O21))","v":""}]
[null,null,null,null,null,{"$f":"IF(OR(tarikh=\"\",D22=\"\"), \"\", Diff(tarikh,D22 ))","v":""},null,null,null,null,null,null,null,null,null,null,{"$f":"IF(OR(tarihk2=\"\",'راس گیری چک'!$O22=\"\"), \"\", Diff(tarihk2,'راس گیری چک'!$O22))","v":""}]
[null,null,null,null,null,{"$f":"IF(OR(tarikh=\"\",D23=\"\"), \"\", Diff(tarikh,D23 ))","v":""},null,null,"استفاده تجاری رایگان نمی باشد و جهت خرید و فعال کردن بی نهایت تماس حاصل فرمایید",null,null,null,null,null,null,null,{"$f":"IF(OR(tarihk2=\"\",'راس گیری چک'!$O23=\"\"), \"\", Diff(tarihk2,'راس گیری چک'!$O23))","v":""}]
[null,null,null,null,null,{"$f":"IF(OR(tarikh=\"\",D24=\"\"), \"\", Diff(tarikh,D24 ))","v":""},null,null,null,null,null,null,null,null,null,null,{"$f":"IF(OR(tarihk2=\"\",'راس گیری چک'!$O24=\"\"), \"\", Diff(tarihk2,'راس گیری چک'!$O24))","v":""}]
[null,null,null,null,null,{"$f":"IF(OR(tarikh=\"\",D25=\"\"), \"\", Diff(tarikh,D25 ))","v":""},null,null,null,null,null,null,null,null,null,null,{"$f":"IF(OR(tarihk2=\"\",'راس گیری چک'!$O25=\"\"), \"\", Diff(tarihk2,'راس گیری چک'!$O25))","v":""}]
[null,null,null,null,null,{"$f":"IF(OR(tarikh=\"\",D26=\"\"), \"\", Diff(tarikh,D26 ))","v":""},null,null,null,null,null,null,null,null,null,null,{"$f":"IF(OR(tarihk2=\"\",'راس گیری چک'!$O26=\"\"), \"\", Diff(tarihk2,'راس گیری چک'!$O26))","v":""}]
[null,null,null,null,null,{"$f":"IF(OR(tarikh=\"\",D27=\"\"), \"\", Diff(tarikh,D27 ))","v":""},null,null,null,null,null,null,null,null,null,null,{"$f":"IF(OR(tarihk2=\"\",'راس گیری چک'!$O27=\"\"), \"\", Diff(tarihk2,'راس گیری چک'!$O27))","v":""}]
[null,null,null,null,null,{"$f":"IF(OR(tarikh=\"\",D28=\"\"), \"\", Diff(tarikh,D28 ))","v":""},null,null,null,null,null,null,null,null,null,null,{"$f":"IF(OR(tarihk2=\"\",'راس گیری چک'!$O28=\"\"), \"\", Diff(tarihk2,'راس گیری چک'!$O28))","v":""}]
[null,null,null,null,null,{"$f":"IF(OR(tarikh=\"\",D29=\"\"), \"\", Diff(tarikh,D29 ))","v":""},null,null,null,null,null,null,null,null,null,null,{"$f":"IF(OR(tarihk2=\"\",'راس گیری چک'!$O29=\"\"), \"\", Diff(tarihk2,'راس گیری چک'!$O29))","v":""}]
[null,null,null,null,null,{"$f":"IF(OR(tarikh=\"\",D30=\"\"), \"\", Diff(tarikh,D30 ))","v":""},null,null,null,null,null,null,null,null,null,null,{"$f":"IF(OR(tarihk2=\"\",'راس گیری چک'!$O30=\"\"), \"\", Diff(tarihk2,'راس گیری چک'!$O30))","v":""}]
[null,null,null,null,null,{"$f":"IF(OR(tarikh=\"\",D31=\"\"), \"\", Diff(tarikh,D31 ))","v":""},null,null,null,null,null,null,null,null,null,null,{"$f":"IF(OR(tarihk2=\"\",'راس گیری چک'!$O31=\"\"), \"\", Diff(tarihk2,'راس گیری چک'!$O31))","v":""}]
[null,null,null,null,null,{"$f":"IF(OR(tarikh=\"\",D32=\"\"), \"\", Diff(tarikh,D32 ))","v":""},null,null,null,null,null,null,null,null,null,null,{"$f":"IF(OR(tarihk2=\"\",'راس گیری چک'!$O32=\"\"), \"\", Diff(tarihk2,'راس گیری چک'!$O32))","v":""}]
[null,null,null,null,null,{"$f":"IF(OR(tarikh=\"\",D33=\"\"), \"\", Diff(tarikh,D33 ))","v":""},null,null,null,null,null,null,null,null,null,null,{"$f":"IF(OR(tarihk2=\"\",'راس گیری چک'!$O33=\"\"), \"\", Diff(tarihk2,'راس گیری چک'!$O33))","v":""}]
[null,null,null,null,null,{"$f":"IF(OR(tarikh=\"\",D34=\"\"), \"\", Diff(tarikh,D34 ))","v":""},null,null,null,null,null,null,null,null,null,null,{"$f":"IF(OR(tarihk2=\"\",'راس گیری چک'!$O34=\"\"), \"\", Diff(tarihk2,'راس گیری چک'!$O34))","v":""}]
[null,null,null,null,null,{"$f":"IF(OR(tarikh=\"\",D35=\"\"), \"\", Diff(tarikh,D35 ))","v":""},null,null,null,null,null,null,null,null,null,null,{"$f":"IF(OR(tarihk2=\"\",'راس گیری چک'!$O35=\"\"), \"\", Diff(tarihk2,'راس گیری چک'!$O35))","v":""}]
[null,null,null,null,null,{"$f":"IF(OR(tarikh=\"\",D36=\"\"), \"\", Diff(tarikh,D36 ))","v":""},null,null,null,null,null,null,null,null,null,null,{"$f":"IF(OR(tarihk2=\"\",'راس گیری چک'!$O36=\"\"), \"\", Diff(tarihk2,'راس گیری چک'!$O36))","v":""}]
[null,null,null,null,null,{"$f":"IF(OR(tarikh=\"\",D37=\"\"), \"\", Diff(tarikh,D37 ))","v":""},null,null,null,null,null,null,null,null,null,null,{"$f":"IF(OR(tarihk2=\"\",'راس گیری چک'!$O37=\"\"), \"\", Diff(tarihk2,'راس گیری چک'!$O37))","v":""}]
[null,null,null,null,null,{"$f":"IF(OR(tarikh=\"\",D38=\"\"), \"\", Diff(tarikh,D38 ))","v":""},null,null,null,null,null,null,null,null,null,null,{"$f":"IF(OR(tarihk2=\"\",'راس گیری چک'!$O38=\"\"), \"\", Diff(tarihk2,'راس گیری چک'!$O38))","v":""}]
[null,null,null,null,null,{"$f":"IF(OR(tarikh=\"\",D39=\"\"), \"\", Diff(tarikh,D39 ))","v":""},null,null,null,null,null,null,null,null,null,null,{"$f":"IF(OR(tarihk2=\"\",'راس گیری چک'!$O39=\"\"), \"\", Diff(tarihk2,'راس گیری چک'!$O39))","v":""}]
[null,null,null,null,null,{"$f":"IF(OR(tarikh=\"\",D40=\"\"), \"\", Diff(tarikh,D40 ))","v":""},null,null,null,null,null,null,null,null,null,null,{"$f":"IF(OR(tarihk2=\"\",'راس گیری چک'!$O40=\"\"), \"\", Diff(tarihk2,'راس گیری چک'!$O40))","v":""}]
[null,null,null,null,null,{"$f":"IF(OR(tarikh=\"\",D41=\"\"), \"\", Diff(tarikh,D41 ))","v":""},null,null,null,null,null,null,null,null,null,null,{"$f":"IF(OR(tarihk2=\"\",'راس گیری چک'!$O41=\"\"), \"\", Diff(tarihk2,'راس گیری چک'!$O41))","v":""}]
[null,null,null,null,null,{"$f":"IF(OR(tarikh=\"\",D42=\"\"), \"\", Diff(tarikh,D42 ))","v":""},null,null,null,null,null,null,null,null,null,null,{"$f":"IF(OR(tarihk2=\"\",'راس گیری چک'!$O42=\"\"), \"\", Diff(tarihk2,'راس گیری چک'!$O42))","v":""}]
[null,null,null,null,null,{"$f":"IF(OR(tarikh=\"\",D43=\"\"), \"\", Diff(tarikh,D43 ))","v":""},null,null,null,null,null,null,null,null,null,null,{"$f":"IF(OR(tarihk2=\"\",'راس گیری چک'!$O43=\"\"), \"\", Diff(tarihk2,'راس گیری چک'!$O43))","v":""}]
[null,null,null,null,null,{"$f":"IF(OR(tarikh=\"\",D44=\"\"), \"\", Diff(tarikh,D44 ))","v":""},null,null,null,null,null,null,null,null,null,null,{"$f":"IF(OR(tarihk2=\"\",'راس گیری چک'!$O44=\"\"), \"\", Diff(tarihk2,'راس گیری چک'!$O44))","v":""}]
[null,null,null,null,null,{"$f":"IF(OR(tarikh=\"\",D45=\"\"), \"\", Diff(tarikh,D45 ))","v":""},null,null,null,null,null,null,null,null,null,null,{"$f":"IF(OR(tarihk2=\"\",'راس گیری چک'!$O45=\"\"), \"\", Diff(tarihk2,'راس گیری چک'!$O45))","v":""}]
[null,null,null,null,null,{"$f":"IF(OR(tarikh=\"\",D46=\"\"), \"\", Diff(tarikh,D46 ))","v":""},null,null,null,null,null,null,null,null,null,null,{"$f":"IF(OR(tarihk2=\"\",'راس گیری چک'!$O46=\"\"), \"\", Diff(tarihk2,'راس گیری چک'!$O46))","v":""}]
[null,null,null,null,null,{"$f":"IF(OR(tarikh=\"\",D47=\"\"), \"\", Diff(tarikh,D47 ))","v":""},null,null,null,null,null,null,null,null,null,null,{"$f":"IF(OR(tarihk2=\"\",'راس گیری چک'!$O47=\"\"), \"\", Diff(tarihk2,'راس گیری چک'!$O47))","v":""}]
[null,null,null,null,null,{"$f":"IF(OR(tarikh=\"\",D48=\"\"), \"\", Diff(tarikh,D48 ))","v":""},null,null,null,null,null,null,null,null,null,null,{"$f":"IF(OR(tarihk2=\"\",'راس گیری چک'!$O48=\"\"), \"\", Diff(tarihk2,'راس گیری چک'!$O48))","v":""}]
[null,null,null,null,null,{"$f":"IF(OR(tarikh=\"\",D49=\"\"), \"\", Diff(tarikh,D49 ))","v":""},null,null,null,null,null,null,null,null,null,null,{"$f":"IF(OR(tarihk2=\"\",'راس گیری چک'!$O49=\"\"), \"\", Diff(tarihk2,'راس گیری چک'!$O49))","v":""}]
[null,null,null,null,null,{"$f":"IF(OR(tarikh=\"\",D50=\"\"), \"\", Diff(tarikh,D50 ))","v":""},null,null,null,null,null,null,null,null,null,null,{"$f":"IF(OR(tarihk2=\"\",'راس گیری چک'!$O50=\"\"), \"\", Diff(tarihk2,'راس گیری چک'!$O50))","v":""}]
[null,null,null,null,null,{"$f":"IF(OR(tarikh=\"\",D51=\"\"), \"\", Diff(tarikh,D51 ))","v":""},null,null,null,null,null,null,null,null,null,null,{"$f":"IF(OR(tarihk2=\"\",'راس گیری چک'!$O51=\"\"), \"\", Diff(tarihk2,'راس گیری چک'!$O51))","v":""}]
[null,null,null,null,null,{"$f":"IF(OR(tarikh=\"\",D52=\"\"), \"\", Diff(tarikh,D52 ))","v":""},null,null,null,null,null,null,null,null,null,null,{"$f":"IF(OR(tarihk2=\"\",'راس گیری چک'!$O52=\"\"), \"\", Diff(tarihk2,'راس گیری چک'!$O52))","v":""}]
[null,null,null,null,null,{"$f":"IF(OR(tarikh=\"\",D53=\"\"), \"\", Diff(tarikh,D53 ))","v":""},null,null,null,null,null,null,null,null,null,null,{"$f":"IF(OR(tarihk2=\"\",'راس گیری چک'!$O53=\"\"), \"\", Diff(tarihk2,'راس گیری چک'!$O53))","v":""}]
[null,null,null,null,null,{"$f":"IF(OR(tarikh=\"\",D54=\"\"), \"\", Diff(tarikh,D54 ))","v":""},null,null,null,null,null,null,null,null,null,null,{"$f":"IF(OR(tarihk2=\"\",'راس گیری چک'!$O54=\"\"), \"\", Diff(tarihk2,'راس گیری چک'!$O54))","v":""}]
[null,null,null,null,null,{"$f":"IF(OR(tarikh=\"\",D55=\"\"), \"\", Diff(tarikh,D55 ))","v":""},null,null,null,null,null,null,null,null,null,null,{"$f":"IF(OR(tarihk2=\"\",'راس گیری چک'!$O55=\"\"), \"\", Diff(tarihk2,'راس گیری چک'!$O55))","v":""}]
[null,null,null,null,null,{"$f":"IF(OR(tarikh=\"\",D56=\"\"), \"\", Diff(tarikh,D56 ))","v":""},null,null,null,null,null,null,null,null,null,null,{"$f":"IF(OR(tarihk2=\"\",'راس گیری چک'!$O56=\"\"), \"\", Diff(tarihk2,'راس گیری چک'!$O56))","v":""}]
[null,null,null,null,null,{"$f":"IF(OR(tarikh=\"\",D57=\"\"), \"\", Diff(tarikh,D57 ))","v":""},null,null,null,null,null,null,null,null,null,null,{"$f":"IF(OR(tarihk2=\"\",'راس گیری چک'!$O57=\"\"), \"\", Diff(tarihk2,'راس گیری چک'!$O57))","v":""}]
[null,null,null,null,null,{"$f":"IF(OR(tarikh=\"\",D58=\"\"), \"\", Diff(tarikh,D58 ))","v":""},null,null,null,null,null,null,null,null,null,null,{"$f":"IF(OR(tarihk2=\"\",'راس گیری چک'!$O58=\"\"), \"\", Diff(tarihk2,'راس گیری چک'!$O58))","v":""}]
[null,null,null,null,null,{"$f":"IF(OR(tarikh=\"\",D59=\"\"), \"\", Diff(tarikh,D59 ))","v":""},null,null,null,null,null,null,null,null,null,null,{"$f":"IF(OR(tarihk2=\"\",'راس گیری چک'!$O59=\"\"), \"\", Diff(tarihk2,'راس گیری چک'!$O59))","v":""}]
[null,null,null,null,null,{"$f":"IF(OR(tarikh=\"\",D60=\"\"), \"\", Diff(tarikh,D60 ))","v":""},null,null,null,null,null,null,null,null,null,null,{"$f":"IF(OR(tarihk2=\"\",'راس گیری چک'!$O60=\"\"), \"\", Diff(tarihk2,'راس گیری چک'!$O60))","v":""}]
[null,null,null,null,null,{"$f":"IF(OR(tarikh=\"\",D61=\"\"), \"\", Diff(tarikh,D61 ))","v":""},null,null,null,null,null,null,null,null,null,null,{"$f":"IF(OR(tarihk2=\"\",'راس گیری چک'!$O61=\"\"), \"\", Diff(tarihk2,'راس گیری چک'!$O61))","v":""}]
[null,null,null,null,null,{"$f":"IF(OR(tarikh=\"\",D62=\"\"), \"\", Diff(tarikh,D62 ))","v":""},null,null,null,null,null,null,null,null,null,null,{"$f":"IF(OR(tarihk2=\"\",'راس گیری چک'!$O62=\"\"), \"\", Diff(tarihk2,'راس گیری چک'!$O62))","v":""}]
[null,null,null,null,null,{"$f":"IF(OR(tarikh=\"\",D63=\"\"), \"\", Diff(tarikh,D63 ))","v":""},null,null,null,null,null,null,null,null,null,null,{"$f":"IF(OR(tarihk2=\"\",'راس گیری چک'!$O63=\"\"), \"\", Diff(tarihk2,'راس گیری چک'!$O63))","v":""}]
[null,null,null,null,null,{"$f":"IF(OR(tarikh=\"\",D64=\"\"), \"\", Diff(tarikh,D64 ))","v":""},null,null,null,null,null,null,null,null,null,null,{"$f":"IF(OR(tarihk2=\"\",'راس گیری چک'!$O64=\"\"), \"\", Diff(tarihk2,'راس گیری چک'!$O64))","v":""}]
[null,null,null,null,null,{"$f":"IF(OR(tarikh=\"\",D65=\"\"), \"\", Diff(tarikh,D65 ))","v":""},null,null,null,null,null,null,null,null,null,null,{"$f":"IF(OR(tarihk2=\"\",'راس گیری چک'!$O65=\"\"), \"\", Diff(tarihk2,'راس گیری چک'!$O65))","v":""}]
[null,null,null,null,null,{"$f":"IF(OR(tarikh=\"\",D66=\"\"), \"\", Diff(tarikh,D66 ))","v":""},null,null,null,null,null,null,null,null,null,null,{"$f":"IF(OR(tarihk2=\"\",'راس گیری چک'!$O66=\"\"), \"\", Diff(tarihk2,'راس گیری چک'!$O66))","v":""}]
[null,null,null,null,null,{"$f":"IF(OR(tarikh=\"\",D67=\"\"), \"\", Diff(tarikh,D67 ))","v":""},null,null,null,null,null,null,null,null,null,null,{"$f":"IF(OR(tarihk2=\"\",'راس گیری چک'!$O67=\"\"), \"\", Diff(tarihk2,'راس گیری چک'!$O67))","v":""}]
[null,null,null,null,null,{"$f":"IF(OR(tarikh=\"\",D68=\"\"), \"\", Diff(tarikh,D68 ))","v":""},null,null,null,null,null,null,null,null,null,null,{"$f":"IF(OR(tarihk2=\"\",'راس گیری چک'!$O68=\"\"), \"\", Diff(tarihk2,'راس گیری چک'!$O68))","v":""}]
[null,null,null,null,null,{"$f":"IF(OR(tarikh=\"\",D69=\"\"), \"\", Diff(tarikh,D69 ))","v":""},null,null,null,null,null,null,null,null,null,null,{"$f":"IF(OR(tarihk2=\"\",'راس گیری چک'!$O69=\"\"), \"\", Diff(tarihk2,'راس گیری چک'!$O69))","v":""}]
[null,null,null,null,null,{"$f":"IF(OR(tarikh=\"\",D70=\"\"), \"\", Diff(tarikh,D70 ))","v":""},null,null,null,null,null,null,null,null,null,null,{"$f":"IF(OR(tarihk2=\"\",'راس گیری چک'!$O70=\"\"), \"\", Diff(tarihk2,'راس گیری چک'!$O70))","v":""}]
[null,null,null,null,null,{"$f":"IF(OR(tarikh=\"\",D71=\"\"), \"\", Diff(tarikh,D71 ))","v":""},null,null,null,null,null,null,null,null,null,null,{"$f":"IF(OR(tarihk2=\"\",'راس گیری چک'!$O71=\"\"), \"\", Diff(tarihk2,'راس گیری چک'!$O71))","v":""}]
[null,null,null,null,null,{"$f":"IF(OR(tarikh=\"\",D72=\"\"), \"\", Diff(tarikh,D72 ))","v":""},null,null,null,null,null,null,null,null,null,null,{"$f":"IF(OR(tarihk2=\"\",'راس گیری چک'!$O72=\"\"), \"\", Diff(tarihk2,'راس گیری چک'!$O72))","v":""}]
[null,null,null,null,null,{"$f":"IF(OR(tarikh=\"\",D73=\"\"), \"\", Diff(tarikh,D73 ))","v":""},null,null,null,null,null,null,null,null,null,null,{"$f":"IF(OR(tarihk2=\"\",'راس گیری چک'!$O73=\"\"), \"\", Diff(tarihk2,'راس گیری چک'!$O73))","v":""}]
[null,null,null,null,null,{"$f":"IF(OR(tarikh=\"\",D74=\"\"), \"\", Diff(tarikh,D74 ))","v":""},null,null,null,null,null,null,null,null,null,null,{"$f":"IF(OR(tarihk2=\"\",'راس گیری چک'!$O74=\"\"), \"\", Diff(tarihk2,'راس گیری چک'!$O74))","v":""}]
[null,null,null,null,null,{"$f":"IF(OR(tarikh=\"\",D75=\"\"), \"\", Diff(tarikh,D75 ))","v":""},null,null,null,null,null,null,null,null,null,null,{"$f":"IF(OR(tarihk2=\"\",'راس گیری چک'!$O75=\"\"), \"\", Diff(tarihk2,'راس گیری چک'!$O75))","v":""}]
[null,null,null,null,null,{"$f":"IF(OR(tarikh=\"\",D76=\"\"), \"\", Diff(tarikh,D76 ))","v":""},null,null,null,null,null,null,null,null,null,null,{"$f":"IF(OR(tarihk2=\"\",'راس گیری چک'!$O76=\"\"), \"\", Diff(tarihk2,'راس گیری چک'!$O76))","v":""}]
[null,null,null,null,null,{"$f":"IF(OR(tarikh=\"\",D77=\"\"), \"\", Diff(tarikh,D77 ))","v":""},null,null,null,null,null,null,null,null,null,null,{"$f":"IF(OR(tarihk2=\"\",'راس گیری چک'!$O77=\"\"), \"\", Diff(tarihk2,'راس گیری چک'!$O77))","v":""}]
[null,null,null,null,null,{"$f":"IF(OR(tarikh=\"\",D78=\"\"), \"\", Diff(tarikh,D78 ))","v":""},null,null,null,null,null,null,null,null,null,null,{"$f":"IF(OR(tarihk2=\"\",'راس گیری چک'!$O78=\"\"), \"\", Diff(tarihk2,'راس گیری چک'!$O78))","v":""}]
[null,null,null,null,null,{"$f":"IF(OR(tarikh=\"\",D79=\"\"), \"\", Diff(tarikh,D79 ))","v":""},null,null,null,null,null,null,null,null,null,null,{"$f":"IF(OR(tarihk2=\"\",'راس گیری چک'!$O79=\"\"), \"\", Diff(tarihk2,'راس گیری چک'!$O79))","v":""}]
[null,null,null,null,null,{"$f":"IF(OR(tarikh=\"\",D80=\"\"), \"\", Diff(tarikh,D80 ))","v":""},null,null,null,null,null,null,null,null,null,null,{"$f":"IF(OR(tarihk2=\"\",'راس گیری چک'!$O80=\"\"), \"\", Diff(tarihk2,'راس گیری چک'!$O80))","v":""}]
[null,null,null,null,null,{"$f":"IF(OR(tarikh=\"\",D81=\"\"), \"\", Diff(tarikh,D81 ))","v":""},null,null,null,null,null,null,null,null,null,null,{"$f":"IF(OR(tarihk2=\"\",'راس گیری چک'!$O81=\"\"), \"\", Diff(tarihk2,'راس گیری چک'!$O81))","v":""}]
[null,null,null,null,null,{"$f":"IF(OR(tarikh=\"\",D82=\"\"), \"\", Diff(tarikh,D82 ))","v":""},null,null,null,null,null,null,null,null,null,null,{"$f":"IF(OR(tarihk2=\"\",'راس گیری چک'!$O82=\"\"), \"\", Diff(tarihk2,'راس گیری چک'!$O82))","v":""}]
[null,null,null,null,null,{"$f":"IF(OR(tarikh=\"\",D83=\"\"), \"\", Diff(tarikh,D83 ))","v":""},null,null,null,null,null,null,null,null,null,null,{"$f":"IF(OR(tarihk2=\"\",'راس گیری چک'!$O83=\"\"), \"\", Diff(tarihk2,'راس گیری چک'!$O83))","v":""}]
[null,null,null,null,null,{"$f":"IF(OR(tarikh=\"\",D84=\"\"), \"\", Diff(tarikh,D84 ))","v":""},null,null,null,null,null,null,null,null,null,null,{"$f":"IF(OR(tarihk2=\"\",'راس گیری چک'!$O84=\"\"), \"\", Diff(tarihk2,'راس گیری چک'!$O84))","v":""}]
[null,null,null,null,null,{"$f":"IF(OR(tarikh=\"\",D85=\"\"), \"\", Diff(tarikh,D85 ))","v":""},null,null,null,null,null,null,null,null,null,null,{"$f":"IF(OR(tarihk2=\"\",'راس گیری چک'!$O85=\"\"), \"\", Diff(tarihk2,'راس گیری چک'!$O85))","v":""}]
[null,null,null,null,null,{"$f":"IF(OR(tarikh=\"\",D86=\"\"), \"\", Diff(tarikh,D86 ))","v":""},null,null,null,null,null,null,null,null,null,null,{"$f":"IF(OR(tarihk2=\"\",'راس گیری چک'!$O86=\"\"), \"\", Diff(tarihk2,'راس گیری چک'!$O86))","v":""}]
[null,null,null,null,null,{"$f":"IF(OR(tarikh=\"\",D87=\"\"), \"\", Diff(tarikh,D87 ))","v":""},null,null,null,null,null,null,null,null,null,null,{"$f":"IF(OR(tarihk2=\"\",'راس گیری چک'!$O87=\"\"), \"\", Diff(tarihk2,'راس گیری چک'!$O87))","v":""}]
[null,null,null,null,null,{"$f":"IF(OR(tarikh=\"\",D88=\"\"), \"\", Diff(tarikh,D88 ))","v":""},null,null,null,null,null,null,null,null,null,null,{"$f":"IF(OR(tarihk2=\"\",'راس گیری چک'!$O88=\"\"), \"\", Diff(tarihk2,'راس گیری چک'!$O88))","v":""}]
[null,null,null,null,null,{"$f":"IF(OR(tarikh=\"\",D89=\"\"), \"\", Diff(tarikh,D89 ))","v":""},null,null,null,null,null,null,null,null,null,null,{"$f":"IF(OR(tarihk2=\"\",'راس گیری چک'!$O89=\"\"), \"\", Diff(tarihk2,'راس گیری چک'!$O89))","v":""}]
[null,null,null,null,null,{"$f":"IF(OR(tarikh=\"\",D90=\"\"), \"\", Diff(tarikh,D90 ))","v":""},null,null,null,null,null,null,null,null,null,null,{"$f":"IF(OR(tarihk2=\"\",'راس گیری چک'!$O90=\"\"), \"\", Diff(tarihk2,'راس گیری چک'!$O90))","v":""}]
[null,null,null,null,null,{"$f":"IF(OR(tarikh=\"\",D91=\"\"), \"\", Diff(tarikh,D91 ))","v":""},null,null,null,null,null,null,null,null,null,null,{"$f":"IF(OR(tarihk2=\"\",'راس گیری چک'!$O91=\"\"), \"\", Diff(tarihk2,'راس گیری چک'!$O91))","v":""}]
[null,null,null,null,null,{"$f":"IF(OR(tarikh=\"\",D92=\"\"), \"\", Diff(tarikh,D92 ))","v":""},null,null,null,null,null,null,null,null,null,null,{"$f":"IF(OR(tarihk2=\"\",'راس گیری چک'!$O92=\"\"), \"\", Diff(tarihk2,'راس گیری چک'!$O92))","v":""}]
[null,null,null,null,null,{"$f":"IF(OR(tarikh=\"\",D93=\"\"), \"\", Diff(tarikh,D93 ))","v":""},null,null,null,null,null,null,null,null,null,null,{"$f":"IF(OR(tarihk2=\"\",'راس گیری چک'!$O93=\"\"), \"\", Diff(tarihk2,'راس گیری چک'!$O93))","v":""}]
[null,null,null,null,null,{"$f":"IF(OR(tarikh=\"\",D94=\"\"), \"\", Diff(tarikh,D94 ))","v":""},null,null,null,null,null,null,null,null,null,null,{"$f":"IF(OR(tarihk2=\"\",'راس گیری چک'!$O94=\"\"), \"\", Diff(tarihk2,'راس گیری چک'!$O94))","v":""}]
[null,null,null,null,null,{"$f":"IF(OR(tarikh=\"\",D95=\"\"), \"\", Diff(tarikh,D95 ))","v":""},null,null,null,null,null,null,null,null,null,null,{"$f":"IF(OR(tarihk2=\"\",'راس گیری چک'!$O95=\"\"), \"\", Diff(tarihk2,'راس گیری چک'!$O95))","v":""}]
[null,null,null,null,null,{"$f":"IF(OR(tarikh=\"\",D96=\"\"), \"\", Diff(tarikh,D96 ))","v":""},null,null,null,null,null,null,null,null,null,null,{"$f":"IF(OR(tarihk2=\"\",'راس گیری چک'!$O96=\"\"), \"\", Diff(tarihk2,'راس گیری چک'!$O96))","v":""}]
[null,null,null,null,null,{"$f":"IF(OR(tarikh=\"\",D97=\"\"), \"\", Diff(tarikh,D97 ))","v":""},null,null,null,null,null,null,null,null,null,null,{"$f":"IF(OR(tarihk2=\"\",'راس گیری چک'!$O97=\"\"), \"\", Diff(tarihk2,'راس گیری چک'!$O97))","v":""}]
[null,null,null,null,null,{"$f":"IF(OR(tarikh=\"\",D98=\"\"), \"\", Diff(tarikh,D98 ))","v":""},null,null,null,null,null,null,null,null,null,null,{"$f":"IF(OR(tarihk2=\"\",'راس گیری چک'!$O98=\"\"), \"\", Diff(tarihk2,'راس گیری چک'!$O98))","v":""}]
[null,null,null,null,null,{"$f":"IF(OR(tarikh=\"\",D99=\"\"), \"\", Diff(tarikh,D99 ))","v":""},null,null,null,null,null,null,null,null,null,null,{"$f":"IF(OR(tarihk2=\"\",'راس گیری چک'!$O99=\"\"), \"\", Diff(tarihk2,'راس گیری چک'!$O99))","v":""}]
[null,null,null,null,null,{"$f":"IF(OR(tarikh=\"\",D100=\"\"), \"\", Diff(tarikh,D100 ))","v":""},null,null,null,null,null,null,null,null,null,null,{"$f":"IF(OR(tarihk2=\"\",'راس گیری چک'!$O100=\"\"), \"\", Diff(tarihk2,'راس گیری چک'!$O100))","v":""}]
[null,null,null,null,null,{"$f":"IF(OR(tarikh=\"\",D101=\"\"), \"\", Diff(tarikh,D101 ))","v":""},null,null,null,null,null,null,null,null,null,null,{"$f":"IF(OR(tarihk2=\"\",'راس گیری چک'!$O101=\"\"), \"\", Diff(tarihk2,'راس گیری چک'!$O101))","v":""}]
[null,null,null,null,null,{"$f":"IF(OR(tarikh=\"\",D102=\"\"), \"\", Diff(tarikh,D102 ))","v":""},null,null,null,null,null,null,null,null,null,null,{"$f":"IF(OR(tarihk2=\"\",'راس گیری چک'!$O102=\"\"), \"\", Diff(tarihk2,'راس گیری چک'!$O102))","v":""}]
[null,null,null,null,null,{"$f":"IF(OR(tarikh=\"\",D103=\"\"), \"\", Diff(tarikh,D103 ))","v":""},null,null,null,null,null,null,null,null,null,null,{"$f":"IF(OR(tarihk2=\"\",'راس گیری چک'!$O103=\"\"), \"\", Diff(tarihk2,'راس گیری چک'!$O103))","v":""}]
[null,null,null,null,null,{"$f":"IF(OR(tarikh=\"\",D104=\"\"), \"\", Diff(tarikh,D104 ))","v":""},null,null,null,null,null,null,null,null,null,null,{"$f":"IF(OR(tarihk2=\"\",'راس گیری چک'!$O104=\"\"), \"\", Diff(tarihk2,'راس گیری چک'!$O104))","v":""}]
[null,null,null,null,null,{"$f":"IF(OR(tarikh=\"\",D105=\"\"), \"\", Diff(tarikh,D105 ))","v":""},null,null,null,null,null,null,null,null,null,null,{"$f":"IF(OR(tarihk2=\"\",'راس گیری چک'!$O105=\"\"), \"\", Diff(tarihk2,'راس گیری چک'!$O105))","v":""}]
[null,null,null,null,null,{"$f":"IF(OR(tarikh=\"\",D106=\"\"), \"\", Diff(tarikh,D106 ))","v":""},null,null,null,null,null,null,null,null,null,null,{"$f":"IF(OR(tarihk2=\"\",'راس گیری چک'!$O106=\"\"), \"\", Diff(tarihk2,'راس گیری چک'!$O106))","v":""}]
[null,null,null,null,null,{"$f":"IF(OR(tarikh=\"\",D107=\"\"), \"\", Diff(tarikh,D107 ))","v":""},null,null,null,null,null,null,null,null,null,null,{"$f":"IF(OR(tarihk2=\"\",'راس گیری چک'!$O107=\"\"), \"\", Diff(tarihk2,'راس گیری چک'!$O107))","v":""}]
[null,null,null,null,null,{"$f":"IF(OR(tarikh=\"\",D108=\"\"), \"\", Diff(tarikh,D108 ))","v":""},null,null,null,null,null,null,null,null,null,null,{"$f":"IF(OR(tarihk2=\"\",'راس گیری چک'!$O108=\"\"), \"\", Diff(tarihk2,'راس گیری چک'!$O108))","v":""}]
[null,null,null,null,null,{"$f":"IF(OR(tarikh=\"\",D109=\"\"), \"\", Diff(tarikh,D109 ))","v":""},null,null,null,null,null,null,null,null,null,null,{"$f":"IF(OR(tarihk2=\"\",'راس گیری چک'!$O109=\"\"), \"\", Diff(tarihk2,'راس گیری چک'!$O109))","v":""}]
[null,null,null,null,null,{"$f":"IF(OR(tarikh=\"\",D110=\"\"), \"\", Diff(tarikh,D110 ))","v":""},null,null,null,null,null,null,null,null,null,null,{"$f":"IF(OR(tarihk2=\"\",'راس گیری چک'!$O110=\"\"), \"\", Diff(tarihk2,'راس گیری چک'!$O110))","v":""}]
[null,null,null,null,null,{"$f":"IF(OR(tarikh=\"\",D111=\"\"), \"\", Diff(tarikh,D111 ))","v":""},null,null,null,null,null,null,null,null,null,null,{"$f":"IF(OR(tarihk2=\"\",'راس گیری چک'!$O111=\"\"), \"\", Diff(tarihk2,'راس گیری چک'!$O111))","v":""}]
[null,null,null,null,null,{"$f":"IF(OR(tarikh=\"\",D112=\"\"), \"\", Diff(tarikh,D112 ))","v":""},null,null,null,null,null,null,null,null,null,null,{"$f":"IF(OR(tarihk2=\"\",'راس گیری چک'!$O112=\"\"), \"\", Diff(tarihk2,'راس گیری چک'!$O112))","v":""}]
[null,null,null,null,null,{"$f":"IF(OR(tarikh=\"\",D113=\"\"), \"\", Diff(tarikh,D113 ))","v":""},null,null,null,null,null,null,null,null,null,null,{"$f":"IF(OR(tarihk2=\"\",'راس گیری چک'!$O113=\"\"), \"\", Diff(tarihk2,'راس گیری چک'!$O113))","v":""}]
[null,null,null,null,null,{"$f":"IF(OR(tarikh=\"\",D114=\"\"), \"\", Diff(tarikh,D114 ))","v":""},null,null,null,null,null,null,null,null,null,null,{"$f":"IF(OR(tarihk2=\"\",'راس گیری چک'!$O114=\"\"), \"\", Diff(tarihk2,'راس گیری چک'!$O114))","v":""}]
[null,null,null,null,null,{"$f":"IF(OR(tarikh=\"\",D115=\"\"), \"\", Diff(tarikh,D115 ))","v":""},null,null,null,null,null,null,null,null,null,null,{"$f":"IF(OR(tarihk2=\"\",'راس گیری چک'!$O115=\"\"), \"\", Diff(tarihk2,'راس گیری چک'!$O115))","v":""}]
[null,null,null,null,null,{"$f":"IF(OR(tarikh=\"\",D116=\"\"), \"\", Diff(tarikh,D116 ))","v":""},null,null,null,null,null,null,null,null,null,null,{"$f":"IF(OR(tarihk2=\"\",'راس گیری چک'!$O116=\"\"), \"\", Diff(tarihk2,'راس گیری چک'!$O116))","v":""}]
[null,null,null,null,null,{"$f":"IF(OR(tarikh=\"\",D117=\"\"), \"\", Diff(tarikh,D117 ))","v":""},null,null,null,null,null,null,null,null,null,null,{"$f":"IF(OR(tarihk2=\"\",'راس گیری چک'!$O117=\"\"), \"\", Diff(tarihk2,'راس گیری چک'!$O117))","v":""}]
[null,null,null,null,null,{"$f":"IF(OR(tarikh=\"\",D118=\"\"), \"\", Diff(tarikh,D118 ))","v":""},null,null,null,null,null,null,null,null,null,null,{"$f":"IF(OR(tarihk2=\"\",'راس گیری چک'!$O118=\"\"), \"\", Diff(tarihk2,'راس گیری چک'!$O118))","v":""}]
[null,null,null,null,null,{"$f":"IF(OR(tarikh=\"\",D119=\"\"), \"\", Diff(tarikh,D119 ))","v":""},null,null,null,null,null,null,null,null,null,null,{"$f":"IF(OR(tarihk2=\"\",'راس گیری چک'!$O119=\"\"), \"\", Diff(tarihk2,'راس گیری چک'!$O119))","v":""}]
[null,null,null,null,null,{"$f":"IF(OR(tarikh=\"\",D120=\"\"), \"\", Diff(tarikh,D120 ))","v":""},null,null,null,null,null,null,null,null,null,null,{"$f":"IF(OR(tarihk2=\"\",'راس گیری چک'!$O120=\"\"), \"\", Diff(tarihk2,'راس گیری چک'!$O120))","v":""}]
[null,null,null,null,null,{"$f":"IF(OR(tarikh=\"\",D121=\"\"), \"\", Diff(tarikh,D121 ))","v":""},null,null,null,null,null,null,null,null,null,null,{"$f":"IF(OR(tarihk2=\"\",'راس گیری چک'!$O121=\"\"), \"\", Diff(tarihk2,'راس گیری چک'!$O121))","v":""}]
[null,null,null,null,null,{"$f":"IF(OR(tarikh=\"\",D122=\"\"), \"\", Diff(tarikh,D122 ))","v":""},null,null,null,null,null,null,null,null,null,null,{"$f":"IF(OR(tarihk2=\"\",'راس گیری چک'!$O122=\"\"), \"\", Diff(tarihk2,'راس گیری چک'!$O122))","v":""}]
[null,null,null,null,null,{"$f":"IF(OR(tarikh=\"\",D123=\"\"), \"\", Diff(tarikh,D123 ))","v":""},null,null,null,null,null,null,null,null,null,null,{"$f":"IF(OR(tarihk2=\"\",'راس گیری چک'!$O123=\"\"), \"\", Diff(tarihk2,'راس گیری چک'!$O123))","v":""}]
[null,null,null,null,null,{"$f":"IF(OR(tarikh=\"\",D124=\"\"), \"\", Diff(tarikh,D124 ))","v":""},null,null,null,null,null,null,null,null,null,null,{"$f":"IF(OR(tarihk2=\"\",'راس گیری چک'!$O124=\"\"), \"\", Diff(tarihk2,'راس گیری چک'!$O124))","v":""}]
[null,null,null,null,null,{"$f":"IF(OR(tarikh=\"\",D125=\"\"), \"\", Diff(tarikh,D125 ))","v":""},null,null,null,null,null,null,null,null,null,null,{"$f":"IF(OR(tarihk2=\"\",'راس گیری چک'!$O125=\"\"), \"\", Diff(tarihk2,'راس گیری چک'!$O125))","v":""}]
[null,null,null,null,null,{"$f":"IF(OR(tarikh=\"\",D126=\"\"), \"\", Diff(tarikh,D126 ))","v":""},null,null,null,null,null,null,null,null,null,null,{"$f":"IF(OR(tarihk2=\"\",'راس گیری چک'!$O126=\"\"), \"\", Diff(tarihk2,'راس گیری چک'!$O126))","v":""}]
[null,null,null,null,null,{"$f":"IF(OR(tarikh=\"\",D127=\"\"), \"\", Diff(tarikh,D127 ))","v":""},null,null,null,null,null,null,null,null,null,null,{"$f":"IF(OR(tarihk2=\"\",'راس گیری چک'!$O127=\"\"), \"\", Diff(tarihk2,'راس گیری چک'!$O127))","v":""}]
[null,null,null,null,null,{"$f":"IF(OR(tarikh=\"\",D128=\"\"), \"\", Diff(tarikh,D128 ))","v":""},null,null,null,null,null,null,null,null,null,null,{"$f":"IF(OR(tarihk2=\"\",'راس گیری چک'!$O128=\"\"), \"\", Diff(tarihk2,'راس گیری چک'!$O128))","v":""}]
[null,null,null,null,null,{"$f":"IF(OR(tarikh=\"\",D129=\"\"), \"\", Diff(tarikh,D129 ))","v":""},null,null,null,null,null,null,null,null,null,null,{"$f":"IF(OR(tarihk2=\"\",'راس گیری چک'!$O129=\"\"), \"\", Diff(tarihk2,'راس گیری چک'!$O129))","v":""}]
[null,null,null,null,null,{"$f":"IF(OR(tarikh=\"\",D130=\"\"), \"\", Diff(tarikh,D130 ))","v":""},null,null,null,null,null,null,null,null,null,null,{"$f":"IF(OR(tarihk2=\"\",'راس گیری چک'!$O130=\"\"), \"\", Diff(tarihk2,'راس گیری چک'!$O130))","v":""}]
[null,null,null,null,null,{"$f":"IF(OR(tarikh=\"\",D131=\"\"), \"\", Diff(tarikh,D131 ))","v":""},null,null,null,null,null,null,null,null,null,null,{"$f":"IF(OR(tarihk2=\"\",'راس گیری چک'!$O131=\"\"), \"\", Diff(tarihk2,'راس گیری چک'!$O131))","v":""}]
[null,null,null,null,null,{"$f":"IF(OR(tarikh=\"\",D132=\"\"), \"\", Diff(tarikh,D132 ))","v":""},null,null,null,null,null,null,null,null,null,null,{"$f":"IF(OR(tarihk2=\"\",'راس گیری چک'!$O132=\"\"), \"\", Diff(tarihk2,'راس گیری چک'!$O132))","v":""}]
[null,null,null,null,null,{"$f":"IF(OR(tarikh=\"\",D133=\"\"), \"\", Diff(tarikh,D133 ))","v":""},null,null,null,null,null,null,null,null,null,null,{"$f":"IF(OR(tarihk2=\"\",'راس گیری چک'!$O133=\"\"), \"\", Diff(tarihk2,'راس گیری چک'!$O133))","v":""}]
[null,null,null,null,null,{"$f":"IF(OR(tarikh=\"\",D134=\"\"), \"\", Diff(tarikh,D134 ))","v":""},null,null,null,null,null,null,null,null,null,null,{"$f":"IF(OR(tarihk2=\"\",'راس گیری چک'!$O134=\"\"), \"\", Diff(tarihk2,'راس گیری چک'!$O134))","v":""}]
[null,null,null,null,null,{"$f":"IF(OR(tarikh=\"\",D135=\"\"), \"\", Diff(tarikh,D135 ))","v":""},null,null,null,null,null,null,null,null,null,null,{"$f":"IF(OR(tarihk2=\"\",'راس گیری چک'!$O135=\"\"), \"\", Diff(tarihk2,'راس گیری چک'!$O135))","v":""}]
[null,null,null,null,null,{"$f":"IF(OR(tarikh=\"\",D136=\"\"), \"\", Diff(tarikh,D136 ))","v":""},null,null,null,null,null,null,null,null,null,null,{"$f":"IF(OR(tarihk2=\"\",'راس گیری چک'!$O136=\"\"), \"\", Diff(tarihk2,'راس گیری چک'!$O136))","v":""}]
[null,null,null,null,null,{"$f":"IF(OR(tarikh=\"\",D137=\"\"), \"\", Diff(tarikh,D137 ))","v":""},null,null,null,null,null,null,null,null,null,null,{"$f":"IF(OR(tarihk2=\"\",'راس گیری چک'!$O137=\"\"), \"\", Diff(tarihk2,'راس گیری چک'!$O137))","v":""}]
[null,null,null,null,null,{"$f":"IF(OR(tarikh=\"\",D138=\"\"), \"\", Diff(tarikh,D138 ))","v":""},null,null,null,null,null,null,null,null,null,null,{"$f":"IF(OR(tarihk2=\"\",'راس گیری چک'!$O138=\"\"), \"\", Diff(tarihk2,'راس گیری چک'!$O138))","v":""}]
[null,null,null,null,null,{"$f":"IF(OR(tarikh=\"\",D139=\"\"), \"\", Diff(tarikh,D139 ))","v":""},null,null,null,null,null,null,null,null,null,null,{"$f":"IF(OR(tarihk2=\"\",'راس گیری چک'!$O139=\"\"), \"\", Diff(tarihk2,'راس گیری چک'!$O139))","v":""}]
[null,null,null,null,null,{"$f":"IF(OR(tarikh=\"\",D140=\"\"), \"\", Diff(tarikh,D140 ))","v":""},null,null,null,null,null,null,null,null,null,null,{"$f":"IF(OR(tarihk2=\"\",'راس گیری چک'!$O140=\"\"), \"\", Diff(tarihk2,'راس گیری چک'!$O140))","v":""}]
[null,null,null,null,null,{"$f":"IF(OR(tarikh=\"\",D141=\"\"), \"\", Diff(tarikh,D141 ))","v":""},null,null,null,null,null,null,null,null,null,null,{"$f":"IF(OR(tarihk2=\"\",'راس گیری چک'!$O141=\"\"), \"\", Diff(tarihk2,'راس گیری چک'!$O141))","v":""}]
[null,null,null,null,null,{"$f":"IF(OR(tarikh=\"\",D142=\"\"), \"\", Diff(tarikh,D142 ))","v":""},null,null,null,null,null,null,null,null,null,null,{"$f":"IF(OR(tarihk2=\"\",'راس گیری چک'!$O142=\"\"), \"\", Diff(tarihk2,'راس گیری چک'!$O142))","v":""}]
[null,null,null,null,null,{"$f":"IF(OR(tarikh=\"\",D143=\"\"), \"\", Diff(tarikh,D143 ))","v":""},null,null,null,null,null,null,null,null,null,null,{"$f":"IF(OR(tarihk2=\"\",'راس گیری چک'!$O143=\"\"), \"\", Diff(tarihk2,'راس گیری چک'!$O143))","v":""}]
[null,null,null,null,null,{"$f":"IF(OR(tarikh=\"\",D144=\"\"), \"\", Diff(tarikh,D144 ))","v":""},null,null,null,null,null,null,null,null,null,null,{"$f":"IF(OR(tarihk2=\"\",'راس گیری چک'!$O144=\"\"), \"\", Diff(tarihk2,'راس گیری چک'!$O144))","v":""}]
[null,null,null,null,null,{"$f":"IF(OR(tarikh=\"\",D145=\"\"), \"\", Diff(tarikh,D145 ))","v":""},null,null,null,null,null,null,null,null,null,null,{"$f":"IF(OR(tarihk2=\"\",'راس گیری چک'!$O145=\"\"), \"\", Diff(tarihk2,'راس گیری چک'!$O145))","v":""}]
[null,null,null,null,null,{"$f":"IF(OR(tarikh=\"\",D146=\"\"), \"\", Diff(tarikh,D146 ))","v":""},null,null,null,null,null,null,null,null,null,null,{"$f":"IF(OR(tarihk2=\"\",'راس گیری چک'!$O146=\"\"), \"\", Diff(tarihk2,'راس گیری چک'!$O146))","v":""}]
[null,null,null,null,null,{"$f":"IF(OR(tarikh=\"\",D147=\"\"), \"\", Diff(tarikh,D147 ))","v":""},null,null,null,null,null,null,null,null,null,null,{"$f":"IF(OR(tarihk2=\"\",'راس گیری چک'!$O147=\"\"), \"\", Diff(tarihk2,'راس گیری چک'!$O147))","v":""}]
[null,null,null,null,null,{"$f":"IF(OR(tarikh=\"\",D148=\"\"), \"\", Diff(tarikh,D148 ))","v":""},null,null,null,null,null,null,null,null,null,null,{"$f":"IF(OR(tarihk2=\"\",'راس گیری چک'!$O148=\"\"), \"\", Diff(tarihk2,'راس گیری چک'!$O148))","v":""}]
[null,null,null,null,null,{"$f":"IF(OR(tarikh=\"\",D149=\"\"), \"\", Diff(tarikh,D149 ))","v":""},null,null,null,null,null,null,null,null,null,null,{"$f":"IF(OR(tarihk2=\"\",'راس گیری چک'!$O149=\"\"), \"\", Diff(tarihk2,'راس گیری چک'!$O149))","v":""}]
[null,null,null,null,null,{"$f":"IF(OR(tarikh=\"\",D150=\"\"), \"\", Diff(tarikh,D150 ))","v":""},null,null,null,null,null,null,null,null,null,null,{"$f":"IF(OR(tarihk2=\"\",'راس گیری چک'!$O150=\"\"), \"\", Diff(tarihk2,'راس گیری چک'!$O150))","v":""}]
[null,null,null,null,null,{"$f":"IF(OR(tarikh=\"\",D151=\"\"), \"\", Diff(tarikh,D151 ))","v":""},null,null,null,null,null,null,null,null,null,null,{"$f":"IF(OR(tarihk2=\"\",'راس گیری چک'!$O151=\"\"), \"\", Diff(tarihk2,'راس گیری چک'!$O151))","v":""}]
[null,null,null,null,null,{"$f":"IF(OR(tarikh=\"\",D152=\"\"), \"\", Diff(tarikh,D152 ))","v":""},null,null,null,null,null,null,null,null,null,null,{"$f":"IF(OR(tarihk2=\"\",'راس گیری چک'!$O152=\"\"), \"\", Diff(tarihk2,'راس گیری چک'!$O152))","v":""}]
[null,null,null,null,null,{"$f":"IF(OR(tarikh=\"\",D153=\"\"), \"\", Diff(tarikh,D153 ))","v":""},null,null,null,null,null,null,null,null,null,null,{"$f":"IF(OR(tarihk2=\"\",'راس گیری چک'!$O153=\"\"), \"\", Diff(tarihk2,'راس گیری چک'!$O153))","v":""}]
[null,null,null,null,null,{"$f":"IF(OR(tarikh=\"\",D154=\"\"), \"\", Diff(tarikh,D154 ))","v":""},null,null,null,null,null,null,null,null,null,null,{"$f":"IF(OR(tarihk2=\"\",'راس گیری چک'!$O154=\"\"), \"\", Diff(tarihk2,'راس گیری چک'!$O154))","v":""}]
[null,null,null,null,null,{"$f":"IF(OR(tarikh=\"\",D155=\"\"), \"\", Diff(tarikh,D155 ))","v":""},null,null,null,null,null,null,null,null,null,null,{"$f":"IF(OR(tarihk2=\"\",'راس گیری چک'!$O155=\"\"), \"\", Diff(tarihk2,'راس گیری چک'!$O155))","v":""}]
[null,null,null,null,null,{"$f":"IF(OR(tarikh=\"\",D156=\"\"), \"\", Diff(tarikh,D156 ))","v":""},null,null,null,null,null,null,null,null,null,null,{"$f":"IF(OR(tarihk2=\"\",'راس گیری چک'!$O156=\"\"), \"\", Diff(tarihk2,'راس گیری چک'!$O156))","v":""}]
[null,null,null,null,null,{"$f":"IF(OR(tarikh=\"\",D157=\"\"), \"\", Diff(tarikh,D157 ))","v":""},null,null,null,null,null,null,null,null,null,null,{"$f":"IF(OR(tarihk2=\"\",'راس گیری چک'!$O157=\"\"), \"\", Diff(tarihk2,'راس گیری چک'!$O157))","v":""}]
[null,null,null,null,null,{"$f":"IF(OR(tarikh=\"\",D158=\"\"), \"\", Diff(tarikh,D158 ))","v":""},null,null,null,null,null,null,null,null,null,null,{"$f":"IF(OR(tarihk2=\"\",'راس گیری چک'!$O158=\"\"), \"\", Diff(tarihk2,'راس گیری چک'!$O158))","v":""}]
[null,null,null,null,null,{"$f":"IF(OR(tarikh=\"\",D159=\"\"), \"\", Diff(tarikh,D159 ))","v":""},null,null,null,null,null,null,null,null,null,null,{"$f":"IF(OR(tarihk2=\"\",'راس گیری چک'!$O159=\"\"), \"\", Diff(tarihk2,'راس گیری چک'!$O159))","v":""}]
[null,null,null,null,null,{"$f":"IF(OR(tarikh=\"\",D160=\"\"), \"\", Diff(tarikh,D160 ))","v":""},null,null,null,null,null,null,null,null,null,null,{"$f":"IF(OR(tarihk2=\"\",'راس گیری چک'!$O160=\"\"), \"\", Diff(tarihk2,'راس گیری چک'!$O160))","v":""}]
[null,null,null,null,null,{"$f":"IF(OR(tarikh=\"\",D161=\"\"), \"\", Diff(tarikh,D161 ))","v":""},null,null,null,null,null,null,null,null,null,null,{"$f":"IF(OR(tarihk2=\"\",'راس گیری چک'!$O161=\"\"), \"\", Diff(tarihk2,'راس گیری چک'!$O161))","v":""}]
[null,null,null,null,null,{"$f":"IF(OR(tarikh=\"\",D162=\"\"), \"\", Diff(tarikh,D162 ))","v":""},null,null,null,null,null,null,null,null,null,null,{"$f":"IF(OR(tarihk2=\"\",'راس گیری چک'!$O162=\"\"), \"\", Diff(tarihk2,'راس گیری چک'!$O162))","v":""}]
[null,null,null,null,null,{"$f":"IF(OR(tarikh=\"\",D163=\"\"), \"\", Diff(tarikh,D163 ))","v":""},null,null,null,null,null,null,null,null,null,null,{"$f":"IF(OR(tarihk2=\"\",'راس گیری چک'!$O163=\"\"), \"\", Diff(tarihk2,'راس گیری چک'!$O163))","v":""}]
[null,null,null,null,null,{"$f":"IF(OR(tarikh=\"\",D164=\"\"), \"\", Diff(tarikh,D164 ))","v":""},null,null,null,null,null,null,null,null,null,null,{"$f":"IF(OR(tarihk2=\"\",'راس گیری چک'!$O164=\"\"), \"\", Diff(tarihk2,'راس گیری چک'!$O164))","v":""}]
[null,null,null,null,null,{"$f":"IF(OR(tarikh=\"\",D165=\"\"), \"\", Diff(tarikh,D165 ))","v":""},null,null,null,null,null,null,null,null,null,null,{"$f":"IF(OR(tarihk2=\"\",'راس گیری چک'!$O165=\"\"), \"\", Diff(tarihk2,'راس گیری چک'!$O165))","v":""}]
[null,null,null,null,null,{"$f":"IF(OR(tarikh=\"\",D166=\"\"), \"\", Diff(tarikh,D166 ))","v":""},null,null,null,null,null,null,null,null,null,null,{"$f":"IF(OR(tarihk2=\"\",'راس گیری چک'!$O166=\"\"), \"\", Diff(tarihk2,'راس گیری چک'!$O166))","v":""}]
[null,null,null,null,null,{"$f":"IF(OR(tarikh=\"\",D167=\"\"), \"\", Diff(tarikh,D167 ))","v":""},null,null,null,null,null,null,null,null,null,null,{"$f":"IF(OR(tarihk2=\"\",'راس گیری چک'!$O167=\"\"), \"\", Diff(tarihk2,'راس گیری چک'!$O167))","v":""}]
[null,null,null,null,null,{"$f":"IF(OR(tarikh=\"\",D168=\"\"), \"\", Diff(tarikh,D168 ))","v":""},null,null,null,null,null,null,null,null,null,null,{"$f":"IF(OR(tarihk2=\"\",'راس گیری چک'!$O168=\"\"), \"\", Diff(tarihk2,'راس گیری چک'!$O168))","v":""}]
[null,null,null,null,null,{"$f":"IF(OR(tarikh=\"\",D169=\"\"), \"\", Diff(tarikh,D169 ))","v":""},null,null,null,null,null,null,null,null,null,null,{"$f":"IF(OR(tarihk2=\"\",'راس گیری چک'!$O169=\"\"), \"\", Diff(tarihk2,'راس گیری چک'!$O169))","v":""}]
[null,null,null,null,null,{"$f":"IF(OR(tarikh=\"\",D170=\"\"), \"\", Diff(tarikh,D170 ))","v":""},null,null,null,null,null,null,null,null,null,null,{"$f":"IF(OR(tarihk2=\"\",'راس گیری چک'!$O170=\"\"), \"\", Diff(tarihk2,'راس گیری چک'!$O170))","v":""}]
[null,null,null,null,null,{"$f":"IF(OR(tarikh=\"\",D171=\"\"), \"\", Diff(tarikh,D171 ))","v":""},null,null,null,null,null,null,null,null,null,null,{"$f":"IF(OR(tarihk2=\"\",'راس گیری چک'!$O171=\"\"), \"\", Diff(tarihk2,'راس گیری چک'!$O171))","v":""}]
[null,null,null,null,null,{"$f":"IF(OR(tarikh=\"\",D172=\"\"), \"\", Diff(tarikh,D172 ))","v":""},null,null,null,null,null,null,null,null,null,null,{"$f":"IF(OR(tarihk2=\"\",'راس گیری چک'!$O172=\"\"), \"\", Diff(tarihk2,'راس گیری چک'!$O172))","v":""}]
[null,null,null,null,null,{"$f":"IF(OR(tarikh=\"\",D173=\"\"), \"\", Diff(tarikh,D173 ))","v":""},null,null,null,null,null,null,null,null,null,null,{"$f":"IF(OR(tarihk2=\"\",'راس گیری چک'!$O173=\"\"), \"\", Diff(tarihk2,'راس گیری چک'!$O173))","v":""}]
[null,null,null,null,null,{"$f":"IF(OR(tarikh=\"\",D174=\"\"), \"\", Diff(tarikh,D174 ))","v":""},null,null,null,null,null,null,null,null,null,null,{"$f":"IF(OR(tarihk2=\"\",'راس گیری چک'!$O174=\"\"), \"\", Diff(tarihk2,'راس گیری چک'!$O174))","v":""}]
[null,null,null,null,null,{"$f":"IF(OR(tarikh=\"\",D175=\"\"), \"\", Diff(tarikh,D175 ))","v":""},null,null,null,null,null,null,null,null,null,null,{"$f":"IF(OR(tarihk2=\"\",'راس گیری چک'!$O175=\"\"), \"\", Diff(tarihk2,'راس گیری چک'!$O175))","v":""}]
[null,null,null,null,null,{"$f":"IF(OR(tarikh=\"\",D176=\"\"), \"\", Diff(tarikh,D176 ))","v":""},null,null,null,null,null,null,null,null,null,null,{"$f":"IF(OR(tarihk2=\"\",'راس گیری چک'!$O176=\"\"), \"\", Diff(tarihk2,'راس گیری چک'!$O176))","v":""}]
[null,null,null,null,null,{"$f":"IF(OR(tarikh=\"\",D177=\"\"), \"\", Diff(tarikh,D177 ))","v":""},null,null,null,null,null,null,null,null,null,null,{"$f":"IF(OR(tarihk2=\"\",'راس گیری چک'!$O177=\"\"), \"\", Diff(tarihk2,'راس گیری چک'!$O177))","v":""}]
[null,null,null,null,null,{"$f":"IF(OR(tarikh=\"\",D178=\"\"), \"\", Diff(tarikh,D178 ))","v":""},null,null,null,null,null,null,null,null,null,null,{"$f":"IF(OR(tarihk2=\"\",'راس گیری چک'!$O178=\"\"), \"\", Diff(tarihk2,'راس گیری چک'!$O178))","v":""}]
[null,null,null,null,null,{"$f":"IF(OR(tarikh=\"\",D179=\"\"), \"\", Diff(tarikh,D179 ))","v":""},null,null,null,null,null,null,null,null,null,null,{"$f":"IF(OR(tarihk2=\"\",'راس گیری چک'!$O179=\"\"), \"\", Diff(tarihk2,'راس گیری چک'!$O179))","v":""}]
[null,null,null,null,null,{"$f":"IF(OR(tarikh=\"\",D180=\"\"), \"\", Diff(tarikh,D180 ))","v":""},null,null,null,null,null,null,null,null,null,null,{"$f":"IF(OR(tarihk2=\"\",'راس گیری چک'!$O180=\"\"), \"\", Diff(tarihk2,'راس گیری چک'!$O180))","v":""}]
[null,null,null,null,null,{"$f":"IF(OR(tarikh=\"\",D181=\"\"), \"\", Diff(tarikh,D181 ))","v":""},null,null,null,null,null,null,null,null,null,null,{"$f":"IF(OR(tarihk2=\"\",'راس گیری چک'!$O181=\"\"), \"\", Diff(tarihk2,'راس گیری چک'!$O181))","v":""}]
[null,null,null,null,null,{"$f":"IF(OR(tarikh=\"\",D182=\"\"), \"\", Diff(tarikh,D182 ))","v":""},null,null,null,null,null,null,null,null,null,null,{"$f":"IF(OR(tarihk2=\"\",'راس گیری چک'!$O182=\"\"), \"\", Diff(tarihk2,'راس گیری چک'!$O182))","v":""}]
[null,null,null,null,null,{"$f":"IF(OR(tarikh=\"\",D183=\"\"), \"\", Diff(tarikh,D183 ))","v":""},null,null,null,null,null,null,null,null,null,null,{"$f":"IF(OR(tarihk2=\"\",'راس گیری چک'!$O183=\"\"), \"\", Diff(tarihk2,'راس گیری چک'!$O183))","v":""}]
[null,null,null,null,null,{"$f":"IF(OR(tarikh=\"\",D184=\"\"), \"\", Diff(tarikh,D184 ))","v":""},null,null,null,null,null,null,null,null,null,null,{"$f":"IF(OR(tarihk2=\"\",'راس گیری چک'!$O184=\"\"), \"\", Diff(tarihk2,'راس گیری چک'!$O184))","v":""}]
[null,null,null,null,null,{"$f":"IF(OR(tarikh=\"\",D185=\"\"), \"\", Diff(tarikh,D185 ))","v":""},null,null,null,null,null,null,null,null,null,null,{"$f":"IF(OR(tarihk2=\"\",'راس گیری چک'!$O185=\"\"), \"\", Diff(tarihk2,'راس گیری چک'!$O185))","v":""}]
[null,null,null,null,null,{"$f":"IF(OR(tarikh=\"\",D186=\"\"), \"\", Diff(tarikh,D186 ))","v":""},null,null,null,null,null,null,null,null,null,null,{"$f":"IF(OR(tarihk2=\"\",'راس گیری چک'!$O186=\"\"), \"\", Diff(tarihk2,'راس گیری چک'!$O186))","v":""}]
[null,null,null,null,null,{"$f":"IF(OR(tarikh=\"\",D187=\"\"), \"\", Diff(tarikh,D187 ))","v":""},null,null,null,null,null,null,null,null,null,null,{"$f":"IF(OR(tarihk2=\"\",'راس گیری چک'!$O187=\"\"), \"\", Diff(tarihk2,'راس گیری چک'!$O187))","v":""}]
[null,null,null,null,null,{"$f":"IF(OR(tarikh=\"\",D188=\"\"), \"\", Diff(tarikh,D188 ))","v":""},null,null,null,null,null,null,null,null,null,null,{"$f":"IF(OR(tarihk2=\"\",'راس گیری چک'!$O188=\"\"), \"\", Diff(tarihk2,'راس گیری چک'!$O188))","v":""}]
[null,null,null,null,null,{"$f":"IF(OR(tarikh=\"\",D189=\"\"), \"\", Diff(tarikh,D189 ))","v":""},null,null,null,null,null,null,null,null,null,null,{"$f":"IF(OR(tarihk2=\"\",'راس گیری چک'!$O189=\"\"), \"\", Diff(tarihk2,'راس گیری چک'!$O189))","v":""}]
[null,null,null,null,null,{"$f":"IF(OR(tarikh=\"\",D190=\"\"), \"\", Diff(tarikh,D190 ))","v":""},null,null,null,null,null,null,null,null,null,null,{"$f":"IF(OR(tarihk2=\"\",'راس گیری چک'!$O190=\"\"), \"\", Diff(tarihk2,'راس گیری چک'!$O190))","v":""}]
[null,null,null,null,null,{"$f":"IF(OR(tarikh=\"\",D191=\"\"), \"\", Diff(tarikh,D191 ))","v":""},null,null,null,null,null,null,null,null,null,null,{"$f":"IF(OR(tarihk2=\"\",'راس گیری چک'!$O191=\"\"), \"\", Diff(tarihk2,'راس گیری چک'!$O191))","v":""}]
[null,null,null,null,null,{"$f":"IF(OR(tarikh=\"\",D192=\"\"), \"\", Diff(tarikh,D192 ))","v":""},null,null,null,null,null,null,null,null,null,null,{"$f":"IF(OR(tarihk2=\"\",'راس گیری چک'!$O192=\"\"), \"\", Diff(tarihk2,'راس گیری چک'!$O192))","v":""}]
[null,null,null,null,null,{"$f":"IF(OR(tarikh=\"\",D193=\"\"), \"\", Diff(tarikh,D193 ))","v":""},null,null,null,null,null,null,null,null,null,null,{"$f":"IF(OR(tarihk2=\"\",'راس گیری چک'!$O193=\"\"), \"\", Diff(tarihk2,'راس گیری چک'!$O193))","v":""}]
[null,null,null,null,null,{"$f":"IF(OR(tarikh=\"\",D194=\"\"), \"\", Diff(tarikh,D194 ))","v":""},null,null,null,null,null,null,null,null,null,null,{"$f":"IF(OR(tarihk2=\"\",'راس گیری چک'!$O194=\"\"), \"\", Diff(tarihk2,'راس گیری چک'!$O194))","v":""}]
[null,null,null,null,null,{"$f":"IF(OR(tarikh=\"\",D195=\"\"), \"\", Diff(tarikh,D195 ))","v":""},null,null,null,null,null,null,null,null,null,null,{"$f":"IF(OR(tarihk2=\"\",'راس گیری چک'!$O195=\"\"), \"\", Diff(tarihk2,'راس گیری چک'!$O195))","v":""}]
[null,null,null,null,null,{"$f":"IF(OR(tarikh=\"\",D196=\"\"), \"\", Diff(tarikh,D196 ))","v":""},null,null,null,null,null,null,null,null,null,null,{"$f":"IF(OR(tarihk2=\"\",'راس گیری چک'!$O196=\"\"), \"\", Diff(tarihk2,'راس گیری چک'!$O196))","v":""}]
[null,null,null,null,null,{"$f":"IF(OR(tarikh=\"\",D197=\"\"), \"\", Diff(tarikh,D197 ))","v":""},null,null,null,null,null,null,null,null,null,null,{"$f":"IF(OR(tarihk2=\"\",'راس گیری چک'!$O197=\"\"), \"\", Diff(tarihk2,'راس گیری چک'!$O197))","v":""}]
[null,null,null,null,null,{"$f":"IF(OR(tarikh=\"\",D198=\"\"), \"\", Diff(tarikh,D198 ))","v":""},null,null,null,null,null,null,null,null,null,null,{"$f":"IF(OR(tarihk2=\"\",'راس گیری چک'!$O198=\"\"), \"\", Diff(tarihk2,'راس گیری چک'!$O198))","v":""}]
[null,null,null,null,null,{"$f":"IF(OR(tarikh=\"\",D199=\"\"), \"\", Diff(tarikh,D199 ))","v":""},null,null,null,null,null,null,null,null,null,null,{"$f":"IF(OR(tarihk2=\"\",'راس گیری چک'!$O199=\"\"), \"\", Diff(tarihk2,'راس گیری چک'!$O199))","v":""}]
[null,null,null,null,null,{"$f":"IF(OR(tarikh=\"\",D200=\"\"), \"\", Diff(tarikh,D200 ))","v":""},null,null,null,null,null,null,null,null,null,null,{"$f":"IF(OR(tarihk2=\"\",'راس گیری چک'!$O200=\"\"), \"\", Diff(tarihk2,'راس گیری چک'!$O200))","v":""}]
[null,null,null,null,null,{"$f":"IF(OR(tarikh=\"\",D201=\"\"), \"\", Diff(tarikh,D201 ))","v":""},null,null,null,null,null,null,null,null,null,null,{"$f":"IF(OR(tarihk2=\"\",'راس گیری چک'!$O201=\"\"), \"\", Diff(tarihk2,'راس گیری چک'!$O201))","v":""}]
[null,null,null,null,null,{"$f":"IF(OR(tarikh=\"\",D202=\"\"), \"\", Diff(tarikh,D202 ))","v":""},null,null,null,null,null,null,null,null,null,null,{"$f":"IF(OR(tarihk2=\"\",'راس گیری چک'!$O202=\"\"), \"\", Diff(tarihk2,'راس گیری چک'!$O202))","v":""}]
[null,null,null,null,null,{"$f":"IF(OR(tarikh=\"\",D203=\"\"), \"\", Diff(tarikh,D203 ))","v":""},null,null,null,null,null,null,null,null,null,null,{"$f":"IF(OR(tarihk2=\"\",'راس گیری چک'!$O203=\"\"), \"\", Diff(tarihk2,'راس گیری چک'!$O203))","v":""}]
[null,null,null,null,null,{"$f":"IF(OR(tarikh=\"\",D204=\"\"), \"\", Diff(tarikh,D204 ))","v":""},null,null,null,null,null,null,null,null,null,null,{"$f":"IF(OR(tarihk2=\"\",'راس گیری چک'!$O204=\"\"), \"\", Diff(tarihk2,'راس گیری چک'!$O204))","v":""}]
[null,null,null,null,null,{"$f":"IF(OR(tarikh=\"\",D205=\"\"), \"\", Diff(tarikh,D205 ))","v":""},null,null,null,null,null,null,null,null,null,null,{"$f":"IF(OR(tarihk2=\"\",'راس گیری چک'!$O205=\"\"), \"\", Diff(tarihk2,'راس گیری چک'!$O205))","v":""}]
[null,null,null,null,null,{"$f":"IF(OR(tarikh=\"\",D206=\"\"), \"\", Diff(tarikh,D206 ))","v":""},null,null,null,null,null,null,null,null,null,null,{"$f":"IF(OR(tarihk2=\"\",'راس گیری چک'!$O206=\"\"), \"\", Diff(tarihk2,'راس گیری چک'!$O206))","v":""}]
[null,null,null,null,null,{"$f":"IF(OR(tarikh=\"\",D207=\"\"), \"\", Diff(tarikh,D207 ))","v":""},null,null,null,null,null,null,null,null,null,null,{"$f":"IF(OR(tarihk2=\"\",'راس گیری چک'!$O207=\"\"), \"\", Diff(tarihk2,'راس گیری چک'!$O207))","v":""}]
[null,null,null,null,null,{"$f":"IF(OR(tarikh=\"\",D208=\"\"), \"\", Diff(tarikh,D208 ))","v":""},null,null,null,null,null,null,null,null,null,null,{"$f":"IF(OR(tarihk2=\"\",'راس گیری چک'!$O208=\"\"), \"\", Diff(tarihk2,'راس گیری چک'!$O208))","v":""}]
[null,null,null,null,null,{"$f":"IF(OR(tarikh=\"\",D209=\"\"), \"\", Diff(tarikh,D209 ))","v":""},null,null,null,null,null,null,null,null,null,null,{"$f":"IF(OR(tarihk2=\"\",'راس گیری چک'!$O209=\"\"), \"\", Diff(tarihk2,'راس گیری چک'!$O209))","v":""}]
[null,null,null,null,null,{"$f":"IF(OR(tarikh=\"\",D210=\"\"), \"\", Diff(tarikh,D210 ))","v":""},null,null,null,null,null,null,null,null,null,null,{"$f":"IF(OR(tarihk2=\"\",'راس گیری چک'!$O210=\"\"), \"\", Diff(tarihk2,'راس گیری چک'!$O210))","v":""}]
[null,null,null,null,null,{"$f":"IF(OR(tarikh=\"\",D211=\"\"), \"\", Diff(tarikh,D211 ))","v":""},null,null,null,null,null,null,null,null,null,null,{"$f":"IF(OR(tarihk2=\"\",'راس گیری چک'!$O211=\"\"), \"\", Diff(tarihk2,'راس گیری چک'!$O211))","v":""}]
[null,null,null,null,null,{"$f":"IF(OR(tarikh=\"\",D212=\"\"), \"\", Diff(tarikh,D212 ))","v":""},null,null,null,null,null,null,null,null,null,null,{"$f":"IF(OR(tarihk2=\"\",'راس گیری چک'!$O212=\"\"), \"\", Diff(tarihk2,'راس گیری چک'!$O212))","v":""}]
[null,null,null,null,null,{"$f":"IF(OR(tarikh=\"\",D213=\"\"), \"\", Diff(tarikh,D213 ))","v":""},null,null,null,null,null,null,null,null,null,null,{"$f":"IF(OR(tarihk2=\"\",'راس گیری چک'!$O213=\"\"), \"\", Diff(tarihk2,'راس گیری چک'!$O213))","v":""}]
[null,null,null,null,null,{"$f":"IF(OR(tarikh=\"\",D214=\"\"), \"\", Diff(tarikh,D214 ))","v":""},null,null,null,null,null,null,null,null,null,null,{"$f":"IF(OR(tarihk2=\"\",'راس گیری چک'!$O214=\"\"), \"\", Diff(tarihk2,'راس گیری چک'!$O214))","v":""}]
[null,null,null,null,null,{"$f":"IF(OR(tarikh=\"\",D215=\"\"), \"\", Diff(tarikh,D215 ))","v":""},null,null,null,null,null,null,null,null,null,null,{"$f":"IF(OR(tarihk2=\"\",'راس گیری چک'!$O215=\"\"), \"\", Diff(tarihk2,'راس گیری چک'!$O215))","v":""}]
[null,null,null,null,null,{"$f":"IF(OR(tarikh=\"\",D216=\"\"), \"\", Diff(tarikh,D216 ))","v":""},null,null,null,null,null,null,null,null,null,null,{"$f":"IF(OR(tarihk2=\"\",'راس گیری چک'!$O216=\"\"), \"\", Diff(tarihk2,'راس گیری چک'!$O216))","v":""}]
[null,null,null,null,null,{"$f":"IF(OR(tarikh=\"\",D217=\"\"), \"\", Diff(tarikh,D217 ))","v":""},null,null,null,null,null,null,null,null,null,null,{"$f":"IF(OR(tarihk2=\"\",'راس گیری چک'!$O217=\"\"), \"\", Diff(tarihk2,'راس گیری چک'!$O217))","v":""}]
[null,null,null,null,null,{"$f":"IF(OR(tarikh=\"\",D218=\"\"), \"\", Diff(tarikh,D218 ))","v":""},null,null,null,null,null,null,null,null,null,null,{"$f":"IF(OR(tarihk2=\"\",'راس گیری چک'!$O218=\"\"), \"\", Diff(tarihk2,'راس گیری چک'!$O218))","v":""}]
[null,null,null,null,null,{"$f":"IF(OR(tarikh=\"\",D219=\"\"), \"\", Diff(tarikh,D219 ))","v":""},null,null,null,null,null,null,null,null,null,null,{"$f":"IF(OR(tarihk2=\"\",'راس گیری چک'!$O219=\"\"), \"\", Diff(tarihk2,'راس گیری چک'!$O219))","v":""}]
[null,null,null,null,null,{"$f":"IF(OR(tarikh=\"\",D220=\"\"), \"\", Diff(tarikh,D220 ))","v":""},null,null,null,null,null,null,null,null,null,null,{"$f":"IF(OR(tarihk2=\"\",'راس گیری چک'!$O220=\"\"), \"\", Diff(tarihk2,'راس گیری چک'!$O220))","v":""}]
[null,null,null,null,null,{"$f":"IF(OR(tarikh=\"\",D221=\"\"), \"\", Diff(tarikh,D221 ))","v":""},null,null,null,null,null,null,null,null,null,null,{"$f":"IF(OR(tarihk2=\"\",'راس گیری چک'!$O221=\"\"), \"\", Diff(tarihk2,'راس گیری چک'!$O221))","v":""}]
[null,null,null,null,null,{"$f":"IF(OR(tarikh=\"\",D222=\"\"), \"\", Diff(tarikh,D222 ))","v":""},null,null,null,null,null,null,null,null,null,null,{"$f":"IF(OR(tarihk2=\"\",'راس گیری چک'!$O222=\"\"), \"\", Diff(tarihk2,'راس گیری چک'!$O222))","v":""}]
[null,null,null,null,null,{"$f":"IF(OR(tarikh=\"\",D223=\"\"), \"\", Diff(tarikh,D223 ))","v":""},null,null,null,null,null,null,null,null,null,null,{"$f":"IF(OR(tarihk2=\"\",'راس گیری چک'!$O223=\"\"), \"\", Diff(tarihk2,'راس گیری چک'!$O223))","v":""}]
[null,null,null,null,null,{"$f":"IF(OR(tarikh=\"\",D224=\"\"), \"\", Diff(tarikh,D224 ))","v":""},null,null,null,null,null,null,null,null,null,null,{"$f":"IF(OR(tarihk2=\"\",'راس گیری چک'!$O224=\"\"), \"\", Diff(tarihk2,'راس گیری چک'!$O224))","v":""}]
[null,null,null,null,null,{"$f":"IF(OR(tarikh=\"\",D225=\"\"), \"\", Diff(tarikh,D225 ))","v":""},null,null,null,null,null,null,null,null,null,null,{"$f":"IF(OR(tarihk2=\"\",'راس گیری چک'!$O225=\"\"), \"\", Diff(tarihk2,'راس گیری چک'!$O225))","v":""}]
[null,null,null,null,null,{"$f":"IF(OR(tarikh=\"\",D226=\"\"), \"\", Diff(tarikh,D226 ))","v":""},null,null,null,null,null,null,null,null,null,null,{"$f":"IF(OR(tarihk2=\"\",'راس گیری چک'!$O226=\"\"), \"\", Diff(tarihk2,'راس گیری چک'!$O226))","v":""}]
[null,null,null,null,null,{"$f":"IF(OR(tarikh=\"\",D227=\"\"), \"\", Diff(tarikh,D227 ))","v":""},null,null,null,null,null,null,null,null,null,null,{"$f":"IF(OR(tarihk2=\"\",'راس گیری چک'!$O227=\"\"), \"\", Diff(tarihk2,'راس گیری چک'!$O227))","v":""}]
[null,null,null,null,null,{"$f":"IF(OR(tarikh=\"\",D228=\"\"), \"\", Diff(tarikh,D228 ))","v":""},null,null,null,null,null,null,null,null,null,null,{"$f":"IF(OR(tarihk2=\"\",'راس گیری چک'!$O228=\"\"), \"\", Diff(tarihk2,'راس گیری چک'!$O228))","v":""}]
[null,null,null,null,null,{"$f":"IF(OR(tarikh=\"\",D229=\"\"), \"\", Diff(tarikh,D229 ))","v":""},null,null,null,null,null,null,null,null,null,null,{"$f":"IF(OR(tarihk2=\"\",'راس گیری چک'!$O229=\"\"), \"\", Diff(tarihk2,'راس گیری چک'!$O229))","v":""}]
[null,null,null,null,null,{"$f":"IF(OR(tarikh=\"\",D230=\"\"), \"\", Diff(tarikh,D230 ))","v":""},null,null,null,null,null,null,null,null,null,null,{"$f":"IF(OR(tarihk2=\"\",'راس گیری چک'!$O230=\"\"), \"\", Diff(tarihk2,'راس گیری چک'!$O230))","v":""}]
[null,null,null,null,null,{"$f":"IF(OR(tarikh=\"\",D231=\"\"), \"\", Diff(tarikh,D231 ))","v":""},null,null,null,null,null,null,null,null,null,null,{"$f":"IF(OR(tarihk2=\"\",'راس گیری چک'!$O231=\"\"), \"\", Diff(tarihk2,'راس گیری چک'!$O231))","v":""}]
[null,null,null,null,null,{"$f":"IF(OR(tarikh=\"\",D232=\"\"), \"\", Diff(tarikh,D232 ))","v":""},null,null,null,null,null,null,null,null,null,null,{"$f":"IF(OR(tarihk2=\"\",'راس گیری چک'!$O232=\"\"), \"\", Diff(tarihk2,'راس گیری چک'!$O232))","v":""}]
[null,null,null,null,null,{"$f":"IF(OR(tarikh=\"\",D233=\"\"), \"\", Diff(tarikh,D233 ))","v":""},null,null,null,null,null,null,null,null,null,null,{"$f":"IF(OR(tarihk2=\"\",'راس گیری چک'!$O233=\"\"), \"\", Diff(tarihk2,'راس گیری چک'!$O233))","v":""}]
[null,null,null,null,null,{"$f":"IF(OR(tarikh=\"\",D234=\"\"), \"\", Diff(tarikh,D234 ))","v":""},null,null,null,null,null,null,null,null,null,null,{"$f":"IF(OR(tarihk2=\"\",'راس گیری چک'!$O234=\"\"), \"\", Diff(tarihk2,'راس گیری چک'!$O234))","v":""}]
[null,null,null,null,null,{"$f":"IF(OR(tarikh=\"\",D235=\"\"), \"\", Diff(tarikh,D235 ))","v":""},null,null,null,null,null,null,null,null,null,null,{"$f":"IF(OR(tarihk2=\"\",'راس گیری چک'!$O235=\"\"), \"\", Diff(tarihk2,'راس گیری چک'!$O235))","v":""}]
[null,null,null,null,null,{"$f":"IF(OR(tarikh=\"\",D236=\"\"), \"\", Diff(tarikh,D236 ))","v":""},null,null,null,null,null,null,null,null,null,null,{"$f":"IF(OR(tarihk2=\"\",'راس گیری چک'!$O236=\"\"), \"\", Diff(tarihk2,'راس گیری چک'!$O236))","v":""}]
[null,null,null,null,null,{"$f":"IF(OR(tarikh=\"\",D237=\"\"), \"\", Diff(tarikh,D237 ))","v":""},null,null,null,null,null,null,null,null,null,null,{"$f":"IF(OR(tarihk2=\"\",'راس گیری چک'!$O237=\"\"), \"\", Diff(tarihk2,'راس گیری چک'!$O237))","v":""}]
[null,null,null,null,null,{"$f":"IF(OR(tarikh=\"\",D238=\"\"), \"\", Diff(tarikh,D238 ))","v":""},null,null,null,null,null,null,null,null,null,null,{"$f":"IF(OR(tarihk2=\"\",'راس گیری چک'!$O238=\"\"), \"\", Diff(tarihk2,'راس گیری چک'!$O238))","v":""}]
[null,null,null,null,null,{"$f":"IF(OR(tarikh=\"\",D239=\"\"), \"\", Diff(tarikh,D239 ))","v":""},null,null,null,null,null,null,null,null,null,null,{"$f":"IF(OR(tarihk2=\"\",'راس گیری چک'!$O239=\"\"), \"\", Diff(tarihk2,'راس گیری چک'!$O239))","v":""}]
[null,null,null,null,null,{"$f":"IF(OR(tarikh=\"\",D240=\"\"), \"\", Diff(tarikh,D240 ))","v":""},null,null,null,null,null,null,null,null,null,null,{"$f":"IF(OR(tarihk2=\"\",'راس گیری چک'!$O240=\"\"), \"\", Diff(tarihk2,'راس گیری چک'!$O240))","v":""}]
[null,null,null,null,null,{"$f":"IF(OR(tarikh=\"\",D241=\"\"), \"\", Diff(tarikh,D241 ))","v":""},null,null,null,null,null,null,null,null,null,null,{"$f":"IF(OR(tarihk2=\"\",'راس گیری چک'!$O241=\"\"), \"\", Diff(tarihk2,'راس گیری چک'!$O241))","v":""}]
[null,null,null,null,null,{"$f":"IF(OR(tarikh=\"\",D242=\"\"), \"\", Diff(tarikh,D242 ))","v":""},null,null,null,null,null,null,null,null,null,null,{"$f":"IF(OR(tarihk2=\"\",'راس گیری چک'!$O242=\"\"), \"\", Diff(tarihk2,'راس گیری چک'!$O242))","v":""}]
[null,null,null,null,null,{"$f":"IF(OR(tarikh=\"\",D243=\"\"), \"\", Diff(tarikh,D243 ))","v":""},null,null,null,null,null,null,null,null,null,null,{"$f":"IF(OR(tarihk2=\"\",'راس گیری چک'!$O243=\"\"), \"\", Diff(tarihk2,'راس گیری چک'!$O243))","v":""}]
[null,null,null,null,null,{"$f":"IF(OR(tarikh=\"\",D244=\"\"), \"\", Diff(tarikh,D244 ))","v":""},null,null,null,null,null,null,null,null,null,null,{"$f":"IF(OR(tarihk2=\"\",'راس گیری چک'!$O244=\"\"), \"\", Diff(tarihk2,'راس گیری چک'!$O244))","v":""}]
[null,null,null,null,null,{"$f":"IF(OR(tarikh=\"\",D245=\"\"), \"\", Diff(tarikh,D245 ))","v":""},null,null,null,null,null,null,null,null,null,null,{"$f":"IF(OR(tarihk2=\"\",'راس گیری چک'!$O245=\"\"), \"\", Diff(tarihk2,'راس گیری چک'!$O245))","v":""}]
[null,null,null,null,null,{"$f":"IF(OR(tarikh=\"\",D246=\"\"), \"\", Diff(tarikh,D246 ))","v":""},null,null,null,null,null,null,null,null,null,null,{"$f":"IF(OR(tarihk2=\"\",'راس گیری چک'!$O246=\"\"), \"\", Diff(tarihk2,'راس گیری چک'!$O246))","v":""}]
[null,null,null,null,null,{"$f":"IF(OR(tarikh=\"\",D247=\"\"), \"\", Diff(tarikh,D247 ))","v":""},null,null,null,null,null,null,null,null,null,null,{"$f":"IF(OR(tarihk2=\"\",'راس گیری چک'!$O247=\"\"), \"\", Diff(tarihk2,'راس گیری چک'!$O247))","v":""}]
[null,null,null,null,null,{"$f":"IF(OR(tarikh=\"\",D248=\"\"), \"\", Diff(tarikh,D248 ))","v":""},null,null,null,null,null,null,null,null,null,null,{"$f":"IF(OR(tarihk2=\"\",'راس گیری چک'!$O248=\"\"), \"\", Diff(tarihk2,'راس گیری چک'!$O248))","v":""}]
[null,null,null,null,null,{"$f":"IF(OR(tarikh=\"\",D249=\"\"), \"\", Diff(tarikh,D249 ))","v":""},null,null,null,null,null,null,null,null,null,null,{"$f":"IF(OR(tarihk2=\"\",'راس گیری چک'!$O249=\"\"), \"\", Diff(tarihk2,'راس گیری چک'!$O249))","v":""}]
[null,null,null,null,null,{"$f":"IF(OR(tarikh=\"\",D250=\"\"), \"\", Diff(tarikh,D250 ))","v":""},null,null,null,null,null,null,null,null,null,null,{"$f":"IF(OR(tarihk2=\"\",'راس گیری چک'!$O250=\"\"), \"\", Diff(tarihk2,'راس گیری چک'!$O250))","v":""}]
[null,null,null,null,null,{"$f":"IF(OR(tarikh=\"\",D251=\"\"), \"\", Diff(tarikh,D251 ))","v":""},null,null,null,null,null,null,null,null,null,null,{"$f":"IF(OR(tarihk2=\"\",'راس گیری چک'!$O251=\"\"), \"\", Diff(tarihk2,'راس گیری چک'!$O251))","v":""}]
[null,null,null,null,null,{"$f":"IF(OR(tarikh=\"\",D252=\"\"), \"\", Diff(tarikh,D252 ))","v":""},null,null,null,null,null,null,null,null,null,null,{"$f":"IF(OR(tarihk2=\"\",'راس گیری چک'!$O252=\"\"), \"\", Diff(tarihk2,'راس گیری چک'!$O252))","v":""}]
[null,null,null,null,null,{"$f":"IF(OR(tarikh=\"\",D253=\"\"), \"\", Diff(tarikh,D253 ))","v":""},null,null,null,null,null,null,null,null,null,null,{"$f":"IF(OR(tarihk2=\"\",'راس گیری چک'!$O253=\"\"), \"\", Diff(tarihk2,'راس گیری چک'!$O253))","v":""}]
[null,null,null,null,null,{"$f":"IF(OR(tarikh=\"\",D254=\"\"), \"\", Diff(tarikh,D254 ))","v":""},null,null,null,null,null,null,null,null,null,null,{"$f":"IF(OR(tarihk2=\"\",'راس گیری چک'!$O254=\"\"), \"\", Diff(tarihk2,'راس گیری چک'!$O254))","v":""}]
[null,null,null,null,null,{"$f":"IF(OR(tarikh=\"\",D255=\"\"), \"\", Diff(tarikh,D255 ))","v":""},null,null,null,null,null,null,null,null,null,null,{"$f":"IF(OR(tarihk2=\"\",'راس گیری چک'!$O255=\"\"), \"\", Diff(tarihk2,'راس گیری چک'!$O255))","v":""}]
[null,null,null,null,null,{"$f":"IF(OR(tarikh=\"\",D256=\"\"), \"\", Diff(tarikh,D256 ))","v":""},null,null,null,null,null,null,null,null,null,null,{"$f":"IF(OR(tarihk2=\"\",'راس گیری چک'!$O256=\"\"), \"\", Diff(tarihk2,'راس گیری چک'!$O256))","v":""}]
[null,null,null,null,null,{"$f":"IF(OR(tarikh=\"\",D257=\"\"), \"\", Diff(tarikh,D257 ))","v":""},null,null,null,null,null,null,null,null,null,null,{"$f":"IF(OR(tarihk2=\"\",'راس گیری چک'!$O257=\"\"), \"\", Diff(tarihk2,'راس گیری چک'!$O257))","v":""}]
[null,null,null,null,null,{"$f":"IF(OR(tarikh=\"\",D258=\"\"), \"\", Diff(tarikh,D258 ))","v":""},null,null,null,null,null,null,null,null,null,null,{"$f":"IF(OR(tarihk2=\"\",'راس گیری چک'!$O258=\"\"), \"\", Diff(tarihk2,'راس گیری چک'!$O258))","v":""}]
[null,null,null,null,null,{"$f":"IF(OR(tarikh=\"\",D259=\"\"), \"\", Diff(tarikh,D259 ))","v":""},null,null,null,null,null,null,null,null,null,null,{"$f":"IF(OR(tarihk2=\"\",'راس گیری چک'!$O259=\"\"), \"\", Diff(tarihk2,'راس گیری چک'!$O259))","v":""}]
[null,null,null,null,null,{"$f":"IF(OR(tarikh=\"\",D260=\"\"), \"\", Diff(tarikh,D260 ))","v":""},null,null,null,null,null,null,null,null,null,null,{"$f":"IF(OR(tarihk2=\"\",'راس گیری چک'!$O260=\"\"), \"\", Diff(tarihk2,'راس گیری چک'!$O260))","v":""}]
[null,null,null,null,null,{"$f":"IF(OR(tarikh=\"\",D261=\"\"), \"\", Diff(tarikh,D261 ))","v":""},null,null,null,null,null,null,null,null,null,null,{"$f":"IF(OR(tarihk2=\"\",'راس گیری چک'!$O261=\"\"), \"\", Diff(tarihk2,'راس گیری چک'!$O261))","v":""}]
[null,null,null,null,null,{"$f":"IF(OR(tarikh=\"\",D262=\"\"), \"\", Diff(tarikh,D262 ))","v":""},null,null,null,null,null,null,null,null,null,null,{"$f":"IF(OR(tarihk2=\"\",'راس گیری چک'!$O262=\"\"), \"\", Diff(tarihk2,'راس گیری چک'!$O262))","v":""}]
[null,null,null,null,null,{"$f":"IF(OR(tarikh=\"\",D263=\"\"), \"\", Diff(tarikh,D263 ))","v":""},null,null,null,null,null,null,null,null,null,null,{"$f":"IF(OR(tarihk2=\"\",'راس گیری چک'!$O263=\"\"), \"\", Diff(tarihk2,'راس گیری چک'!$O263))","v":""}]
[null,null,null,null,null,{"$f":"IF(OR(tarikh=\"\",D264=\"\"), \"\", Diff(tarikh,D264 ))","v":""},null,null,null,null,null,null,null,null,null,null,{"$f":"IF(OR(tarihk2=\"\",'راس گیری چک'!$O264=\"\"), \"\", Diff(tarihk2,'راس گیری چک'!$O264))","v":""}]
[null,null,null,null,null,{"$f":"IF(OR(tarikh=\"\",D265=\"\"), \"\", Diff(tarikh,D265 ))","v":""},null,null,null,null,null,null,null,null,null,null,{"$f":"IF(OR(tarihk2=\"\",'راس گیری چک'!$O265=\"\"), \"\", Diff(tarihk2,'راس گیری چک'!$O265))","v":""}]
[null,null,null,null,null,{"$f":"IF(OR(tarikh=\"\",D266=\"\"), \"\", Diff(tarikh,D266 ))","v":""},null,null,null,null,null,null,null,null,null,null,{"$f":"IF(OR(tarihk2=\"\",'راس گیری چک'!$O266=\"\"), \"\", Diff(tarihk2,'راس گیری چک'!$O266))","v":""}]
[null,null,null,null,null,{"$f":"IF(OR(tarikh=\"\",D267=\"\"), \"\", Diff(tarikh,D267 ))","v":""},null,null,null,null,null,null,null,null,null,null,{"$f":"IF(OR(tarihk2=\"\",'راس گیری چک'!$O267=\"\"), \"\", Diff(tarihk2,'راس گیری چک'!$O267))","v":""}]
[null,null,null,null,null,{"$f":"IF(OR(tarikh=\"\",D268=\"\"), \"\", Diff(tarikh,D268 ))","v":""},null,null,null,null,null,null,null,null,null,null,{"$f":"IF(OR(tarihk2=\"\",'راس گیری چک'!$O268=\"\"), \"\", Diff(tarihk2,'راس گیری چک'!$O268))","v":""}]
[null,null,null,null,null,{"$f":"IF(OR(tarikh=\"\",D269=\"\"), \"\", Diff(tarikh,D269 ))","v":""},null,null,null,null,null,null,null,null,null,null,{"$f":"IF(OR(tarihk2=\"\",'راس گیری چک'!$O269=\"\"), \"\", Diff(tarihk2,'راس گیری چک'!$O269))","v":""}]
[null,null,null,null,null,{"$f":"IF(OR(tarikh=\"\",D270=\"\"), \"\", Diff(tarikh,D270 ))","v":""},null,null,null,null,null,null,null,null,null,null,{"$f":"IF(OR(tarihk2=\"\",'راس گیری چک'!$O270=\"\"), \"\", Diff(tarihk2,'راس گیری چک'!$O270))","v":""}]
[null,null,null,null,null,{"$f":"IF(OR(tarikh=\"\",D271=\"\"), \"\", Diff(tarikh,D271 ))","v":""},null,null,null,null,null,null,null,null,null,null,{"$f":"IF(OR(tarihk2=\"\",'راس گیری چک'!$O271=\"\"), \"\", Diff(tarihk2,'راس گیری چک'!$O271))","v":""}]
[null,null,null,null,null,{"$f":"IF(OR(tarikh=\"\",D272=\"\"), \"\", Diff(tarikh,D272 ))","v":""},null,null,null,null,null,null,null,null,null,null,{"$f":"IF(OR(tarihk2=\"\",'راس گیری چک'!$O272=\"\"), \"\", Diff(tarihk2,'راس گیری چک'!$O272))","v":""}]
[null,null,null,null,null,{"$f":"IF(OR(tarikh=\"\",D273=\"\"), \"\", Diff(tarikh,D273 ))","v":""},null,null,null,null,null,null,null,null,null,null,{"$f":"IF(OR(tarihk2=\"\",'راس گیری چک'!$O273=\"\"), \"\", Diff(tarihk2,'راس گیری چک'!$O273))","v":""}]
[null,null,null,null,null,{"$f":"IF(OR(tarikh=\"\",D274=\"\"), \"\", Diff(tarikh,D274 ))","v":""},null,null,null,null,null,null,null,null,null,null,{"$f":"IF(OR(tarihk2=\"\",'راس گیری چک'!$O274=\"\"), \"\", Diff(tarihk2,'راس گیری چک'!$O274))","v":""}]
[null,null,null,null,null,{"$f":"IF(OR(tarikh=\"\",D275=\"\"), \"\", Diff(tarikh,D275 ))","v":""},null,null,null,null,null,null,null,null,null,null,{"$f":"IF(OR(tarihk2=\"\",'راس گیری چک'!$O275=\"\"), \"\", Diff(tarihk2,'راس گیری چک'!$O275))","v":""}]
[null,null,null,null,null,{"$f":"IF(OR(tarikh=\"\",D276=\"\"), \"\", Diff(tarikh,D276 ))","v":""},null,null,null,null,null,null,null,null,null,null,{"$f":"IF(OR(tarihk2=\"\",'راس گیری چک'!$O276=\"\"), \"\", Diff(tarihk2,'راس گیری چک'!$O276))","v":""}]
[null,null,null,null,null,{"$f":"IF(OR(tarikh=\"\",D277=\"\"), \"\", Diff(tarikh,D277 ))","v":""},null,null,null,null,null,null,null,null,null,null,{"$f":"IF(OR(tarihk2=\"\",'راس گیری چک'!$O277=\"\"), \"\", Diff(tarihk2,'راس گیری چک'!$O277))","v":""}]
[null,null,null,null,null,{"$f":"IF(OR(tarikh=\"\",D278=\"\"), \"\", Diff(tarikh,D278 ))","v":""},null,null,null,null,null,null,null,null,null,null,{"$f":"IF(OR(tarihk2=\"\",'راس گیری چک'!$O278=\"\"), \"\", Diff(tarihk2,'راس گیری چک'!$O278))","v":""}]
[null,null,null,null,null,{"$f":"IF(OR(tarikh=\"\",D279=\"\"), \"\", Diff(tarikh,D279 ))","v":""},null,null,null,null,null,null,null,null,null,null,{"$f":"IF(OR(tarihk2=\"\",'راس گیری چک'!$O279=\"\"), \"\", Diff(tarihk2,'راس گیری چک'!$O279))","v":""}]
[null,null,null,null,null,{"$f":"IF(OR(tarikh=\"\",D280=\"\"), \"\", Diff(tarikh,D280 ))","v":""},null,null,null,null,null,null,null,null,null,null,{"$f":"IF(OR(tarihk2=\"\",'راس گیری چک'!$O280=\"\"), \"\", Diff(tarihk2,'راس گیری چک'!$O280))","v":""}]
[null,null,null,null,null,{"$f":"IF(OR(tarikh=\"\",D281=\"\"), \"\", Diff(tarikh,D281 ))","v":""},null,null,null,null,null,null,null,null,null,null,{"$f":"IF(OR(tarihk2=\"\",'راس گیری چک'!$O281=\"\"), \"\", Diff(tarihk2,'راس گیری چک'!$O281))","v":""}]
[null,null,null,null,null,{"$f":"IF(OR(tarikh=\"\",D282=\"\"), \"\", Diff(tarikh,D282 ))","v":""},null,null,null,null,null,null,null,null,null,null,{"$f":"IF(OR(tarihk2=\"\",'راس گیری چک'!$O282=\"\"), \"\", Diff(tarihk2,'راس گیری چک'!$O282))","v":""}]
[null,null,null,null,null,{"$f":"IF(OR(tarikh=\"\",D283=\"\"), \"\", Diff(tarikh,D283 ))","v":""},null,null,null,null,null,null,null,null,null,null,{"$f":"IF(OR(tarihk2=\"\",'راس گیری چک'!$O283=\"\"), \"\", Diff(tarihk2,'راس گیری چک'!$O283))","v":""}]
[null,null,null,null,null,{"$f":"IF(OR(tarikh=\"\",D284=\"\"), \"\", Diff(tarikh,D284 ))","v":""},null,null,null,null,null,null,null,null,null,null,{"$f":"IF(OR(tarihk2=\"\",'راس گیری چک'!$O284=\"\"), \"\", Diff(tarihk2,'راس گیری چک'!$O284))","v":""}]
[null,null,null,null,null,{"$f":"IF(OR(tarikh=\"\",D285=\"\"), \"\", Diff(tarikh,D285 ))","v":""},null,null,null,null,null,null,null,null,null,null,{"$f":"IF(OR(tarihk2=\"\",'راس گیری چک'!$O285=\"\"), \"\", Diff(tarihk2,'راس گیری چک'!$O285))","v":""}]
[null,null,null,null,null,{"$f":"IF(OR(tarikh=\"\",D286=\"\"), \"\", Diff(tarikh,D286 ))","v":""},null,null,null,null,null,null,null,null,null,null,{"$f":"IF(OR(tarihk2=\"\",'راس گیری چک'!$O286=\"\"), \"\", Diff(tarihk2,'راس گیری چک'!$O286))","v":""}]
[null,null,null,null,null,{"$f":"IF(OR(tarikh=\"\",D287=\"\"), \"\", Diff(tarikh,D287 ))","v":""},null,null,null,null,null,null,null,null,null,null,{"$f":"IF(OR(tarihk2=\"\",'راس گیری چک'!$O287=\"\"), \"\", Diff(tarihk2,'راس گیری چک'!$O287))","v":""}]
[null,null,null,null,null,{"$f":"IF(OR(tarikh=\"\",D288=\"\"), \"\", Diff(tarikh,D288 ))","v":""},null,null,null,null,null,null,null,null,null,null,{"$f":"IF(OR(tarihk2=\"\",'راس گیری چک'!$O288=\"\"), \"\", Diff(tarihk2,'راس گیری چک'!$O288))","v":""}]
[null,null,null,null,null,{"$f":"IF(OR(tarikh=\"\",D289=\"\"), \"\", Diff(tarikh,D289 ))","v":""},null,null,null,null,null,null,null,null,null,null,{"$f":"IF(OR(tarihk2=\"\",'راس گیری چک'!$O289=\"\"), \"\", Diff(tarihk2,'راس گیری چک'!$O289))","v":""}]
[null,null,null,null,null,{"$f":"IF(OR(tarikh=\"\",D290=\"\"), \"\", Diff(tarikh,D290 ))","v":""},null,null,null,null,null,null,null,null,null,null,{"$f":"IF(OR(tarihk2=\"\",'راس گیری چک'!$O290=\"\"), \"\", Diff(tarihk2,'راس گیری چک'!$O290))","v":""}]
[null,null,null,null,null,{"$f":"IF(OR(tarikh=\"\",D291=\"\"), \"\", Diff(tarikh,D291 ))","v":""},null,null,null,null,null,null,null,null,null,null,{"$f":"IF(OR(tarihk2=\"\",'راس گیری چک'!$O291=\"\"), \"\", Diff(tarihk2,'راس گیری چک'!$O291))","v":""}]
[null,null,null,null,null,{"$f":"IF(OR(tarikh=\"\",D292=\"\"), \"\", Diff(tarikh,D292 ))","v":""},null,null,null,null,null,null,null,null,null,null,{"$f":"IF(OR(tarihk2=\"\",'راس گیری چک'!$O292=\"\"), \"\", Diff(tarihk2,'راس گیری چک'!$O292))","v":""}]
[null,null,null,null,null,{"$f":"IF(OR(tarikh=\"\",D293=\"\"), \"\", Diff(tarikh,D293 ))","v":""},null,null,null,null,null,null,null,null,null,null,{"$f":"IF(OR(tarihk2=\"\",'راس گیری چک'!$O293=\"\"), \"\", Diff(tarihk2,'راس گیری چک'!$O293))","v":""}]
[null,null,null,null,null,{"$f":"IF(OR(tarikh=\"\",D294=\"\"), \"\", Diff(tarikh,D294 ))","v":""},null,null,null,null,null,null,null,null,null,null,{"$f":"IF(OR(tarihk2=\"\",'راس گیری چک'!$O294=\"\"), \"\", Diff(tarihk2,'راس گیری چک'!$O294))","v":""}]
[null,null,null,null,null,{"$f":"IF(OR(tarikh=\"\",D295=\"\"), \"\", Diff(tarikh,D295 ))","v":""},null,null,null,null,null,null,null,null,null,null,{"$f":"IF(OR(tarihk2=\"\",'راس گیری چک'!$O295=\"\"), \"\", Diff(tarihk2,'راس گیری چک'!$O295))","v":""}]
[null,null,null,null,null,{"$f":"IF(OR(tarikh=\"\",D296=\"\"), \"\", Diff(tarikh,D296 ))","v":""},null,null,null,null,null,null,null,null,null,null,{"$f":"IF(OR(tarihk2=\"\",'راس گیری چک'!$O296=\"\"), \"\", Diff(tarihk2,'راس گیری چک'!$O296))","v":""}]
[null,null,null,null,null,{"$f":"IF(OR(tarikh=\"\",D297=\"\"), \"\", Diff(tarikh,D297 ))","v":""},null,null,null,null,null,null,null,null,null,null,{"$f":"IF(OR(tarihk2=\"\",'راس گیری چک'!$O297=\"\"), \"\", Diff(tarihk2,'راس گیری چک'!$O297))","v":""}]
[null,null,null,null,null,{"$f":"IF(OR(tarikh=\"\",D298=\"\"), \"\", Diff(tarikh,D298 ))","v":""},null,null,null,null,null,null,null,null,null,null,{"$f":"IF(OR(tarihk2=\"\",'راس گیری چک'!$O298=\"\"), \"\", Diff(tarihk2,'راس گیری چک'!$O298))","v":""}]
[null,null,null,null,null,{"$f":"IF(OR(tarikh=\"\",D299=\"\"), \"\", Diff(tarikh,D299 ))","v":""},null,null,null,null,null,null,null,null,null,null,{"$f":"IF(OR(tarihk2=\"\",'راس گیری چک'!$O299=\"\"), \"\", Diff(tarihk2,'راس گیری چک'!$O299))","v":""}]
[null,null,null,null,null,{"$f":"IF(OR(tarikh=\"\",D300=\"\"), \"\", Diff(tarikh,D300 ))","v":""},null,null,null,null,null,null,null,null,null,null,{"$f":"IF(OR(tarihk2=\"\",'راس گیری چک'!$O300=\"\"), \"\", Diff(tarihk2,'راس گیری چک'!$O300))","v":""}]
[null,null,null,null,null,{"$f":"IF(OR(tarikh=\"\",D301=\"\"), \"\", Diff(tarikh,D301 ))","v":""},null,null,null,null,null,null,null,null,null,null,{"$f":"IF(OR(tarihk2=\"\",'راس گیری چک'!$O301=\"\"), \"\", Diff(tarihk2,'راس گیری چک'!$O301))","v":""}]
[null,null,null,null,null,{"$f":"IF(OR(tarikh=\"\",D302=\"\"), \"\", Diff(tarikh,D302 ))","v":""},null,null,null,null,null,null,null,null,null,null,{"$f":"IF(OR(tarihk2=\"\",'راس گیری چک'!$O302=\"\"), \"\", Diff(tarihk2,'راس گیری چک'!$O302))","v":""}]
[null,null,null,null,null,{"$f":"IF(OR(tarikh=\"\",D303=\"\"), \"\", Diff(tarikh,D303 ))","v":""},null,null,null,null,null,null,null,null,null,null,{"$f":"IF(OR(tarihk2=\"\",'راس گیری چک'!$O303=\"\"), \"\", Diff(tarihk2,'راس گیری چک'!$O303))","v":""}]
[null,null,null,null,null,{"$f":"IF(OR(tarikh=\"\",D304=\"\"), \"\", Diff(tarikh,D304 ))","v":""},null,null,null,null,null,null,null,null,null,null,{"$f":"IF(OR(tarihk2=\"\",'راس گیری چک'!$O304=\"\"), \"\", Diff(tarihk2,'راس گیری چک'!$O304))","v":""}]
[null,null,null,null,null,{"$f":"IF(OR(tarikh=\"\",D305=\"\"), \"\", Diff(tarikh,D305 ))","v":""},null,null,null,null,null,null,null,null,null,null,{"$f":"IF(OR(tarihk2=\"\",'راس گیری چک'!$O305=\"\"), \"\", Diff(tarihk2,'راس گیری چک'!$O305))","v":""}]
[null,null,null,null,null,{"$f":"IF(OR(tarikh=\"\",D306=\"\"), \"\", Diff(tarikh,D306 ))","v":""},null,null,null,null,null,null,null,null,null,null,{"$f":"IF(OR(tarihk2=\"\",'راس گیری چک'!$O306=\"\"), \"\", Diff(tarihk2,'راس گیری چک'!$O306))","v":""}]
[null,null,null,null,null,{"$f":"IF(OR(tarikh=\"\",D307=\"\"), \"\", Diff(tarikh,D307 ))","v":""},null,null,null,null,null,null,null,null,null,null,{"$f":"IF(OR(tarihk2=\"\",'راس گیری چک'!$O307=\"\"), \"\", Diff(tarihk2,'راس گیری چک'!$O307))","v":""}]
[null,null,null,null,null,{"$f":"IF(OR(tarikh=\"\",D308=\"\"), \"\", Diff(tarikh,D308 ))","v":""},null,null,null,null,null,null,null,null,null,null,{"$f":"IF(OR(tarihk2=\"\",'راس گیری چک'!$O308=\"\"), \"\", Diff(tarihk2,'راس گیری چک'!$O308))","v":""}]
[null,null,null,null,null,{"$f":"IF(OR(tarikh=\"\",D309=\"\"), \"\", Diff(tarikh,D309 ))","v":""},null,null,null,null,null,null,null,null,null,null,{"$f":"IF(OR(tarihk2=\"\",'راس گیری چک'!$O309=\"\"), \"\", Diff(tarihk2,'راس گیری چک'!$O309))","v":""}]
[null,null,null,null,null,{"$f":"IF(OR(tarikh=\"\",D310=\"\"), \"\", Diff(tarikh,D310 ))","v":""},null,null,null,null,null,null,null,null,null,null,{"$f":"IF(OR(tarihk2=\"\",'راس گیری چک'!$O310=\"\"), \"\", Diff(tarihk2,'راس گیری چک'!$O310))","v":""}]
[null,null,null,null,null,{"$f":"IF(OR(tarikh=\"\",D311=\"\"), \"\", Diff(tarikh,D311 ))","v":""},null,null,null,null,null,null,null,null,null,null,{"$f":"IF(OR(tarihk2=\"\",'راس گیری چک'!$O311=\"\"), \"\", Diff(tarihk2,'راس گیری چک'!$O311))","v":""}]
[null,null,null,null,null,{"$f":"IF(OR(tarikh=\"\",D312=\"\"), \"\", Diff(tarikh,D312 ))","v":""},null,null,null,null,null,null,null,null,null,null,{"$f":"IF(OR(tarihk2=\"\",'راس گیری چک'!$O312=\"\"), \"\", Diff(tarihk2,'راس گیری چک'!$O312))","v":""}]
[null,null,null,null,null,{"$f":"IF(OR(tarikh=\"\",D313=\"\"), \"\", Diff(tarikh,D313 ))","v":""},null,null,null,null,null,null,null,null,null,null,{"$f":"IF(OR(tarihk2=\"\",'راس گیری چک'!$O313=\"\"), \"\", Diff(tarihk2,'راس گیری چک'!$O313))","v":""}]
[null,null,null,null,null,{"$f":"IF(OR(tarikh=\"\",D314=\"\"), \"\", Diff(tarikh,D314 ))","v":""},null,null,null,null,null,null,null,null,null,null,{"$f":"IF(OR(tarihk2=\"\",'راس گیری چک'!$O314=\"\"), \"\", Diff(tarihk2,'راس گیری چک'!$O314))","v":""}]
[null,null,null,null,null,{"$f":"IF(OR(tarikh=\"\",D315=\"\"), \"\", Diff(tarikh,D315 ))","v":""},null,null,null,null,null,null,null,null,null,null,{"$f":"IF(OR(tarihk2=\"\",'راس گیری چک'!$O315=\"\"), \"\", Diff(tarihk2,'راس گیری چک'!$O315))","v":""}]
[null,null,null,null,null,{"$f":"IF(OR(tarikh=\"\",D316=\"\"), \"\", Diff(tarikh,D316 ))","v":""},null,null,null,null,null,null,null,null,null,null,{"$f":"IF(OR(tarihk2=\"\",'راس گیری چک'!$O316=\"\"), \"\", Diff(tarihk2,'راس گیری چک'!$O316))","v":""}]
[null,null,null,null,null,{"$f":"IF(OR(tarikh=\"\",D317=\"\"), \"\", Diff(tarikh,D317 ))","v":""},null,null,null,null,null,null,null,null,null,null,{"$f":"IF(OR(tarihk2=\"\",'راس گیری چک'!$O317=\"\"), \"\", Diff(tarihk2,'راس گیری چک'!$O317))","v":""}]
[null,null,null,null,null,{"$f":"IF(OR(tarikh=\"\",D318=\"\"), \"\", Diff(tarikh,D318 ))","v":""},null,null,null,null,null,null,null,null,null,null,{"$f":"IF(OR(tarihk2=\"\",'راس گیری چک'!$O318=\"\"), \"\", Diff(tarihk2,'راس گیری چک'!$O318))","v":""}]
[null,null,null,null,null,{"$f":"IF(OR(tarikh=\"\",D319=\"\"), \"\", Diff(tarikh,D319 ))","v":""},null,null,null,null,null,null,null,null,null,null,{"$f":"IF(OR(tarihk2=\"\",'راس گیری چک'!$O319=\"\"), \"\", Diff(tarihk2,'راس گیری چک'!$O319))","v":""}]
[null,null,null,null,null,{"$f":"IF(OR(tarikh=\"\",D320=\"\"), \"\", Diff(tarikh,D320 ))","v":""},null,null,null,null,null,null,null,null,null,null,{"$f":"IF(OR(tarihk2=\"\",'راس گیری چک'!$O320=\"\"), \"\", Diff(tarihk2,'راس گیری چک'!$O320))","v":""}]
[null,null,null,null,null,{"$f":"IF(OR(tarikh=\"\",D321=\"\"), \"\", Diff(tarikh,D321 ))","v":""},null,null,null,null,null,null,null,null,null,null,{"$f":"IF(OR(tarihk2=\"\",'راس گیری چک'!$O321=\"\"), \"\", Diff(tarihk2,'راس گیری چک'!$O321))","v":""}]
[null,null,null,null,null,{"$f":"IF(OR(tarikh=\"\",D322=\"\"), \"\", Diff(tarikh,D322 ))","v":""},null,null,null,null,null,null,null,null,null,null,{"$f":"IF(OR(tarihk2=\"\",'راس گیری چک'!$O322=\"\"), \"\", Diff(tarihk2,'راس گیری چک'!$O322))","v":""}]
[null,null,null,null,null,{"$f":"IF(OR(tarikh=\"\",D323=\"\"), \"\", Diff(tarikh,D323 ))","v":""},null,null,null,null,null,null,null,null,null,null,{"$f":"IF(OR(tarihk2=\"\",'راس گیری چک'!$O323=\"\"), \"\", Diff(tarihk2,'راس گیری چک'!$O323))","v":""}]
[null,null,null,null,null,{"$f":"IF(OR(tarikh=\"\",D324=\"\"), \"\", Diff(tarikh,D324 ))","v":""},null,null,null,null,null,null,null,null,null,null,{"$f":"IF(OR(tarihk2=\"\",'راس گیری چک'!$O324=\"\"), \"\", Diff(tarihk2,'راس گیری چک'!$O324))","v":""}]
[null,null,null,null,null,{"$f":"IF(OR(tarikh=\"\",D325=\"\"), \"\", Diff(tarikh,D325 ))","v":""},null,null,null,null,null,null,null,null,null,null,{"$f":"IF(OR(tarihk2=\"\",'راس گیری چک'!$O325=\"\"), \"\", Diff(tarihk2,'راس گیری چک'!$O325))","v":""}]
[null,null,null,null,null,{"$f":"IF(OR(tarikh=\"\",D326=\"\"), \"\", Diff(tarikh,D326 ))","v":""},null,null,null,null,null,null,null,null,null,null,{"$f":"IF(OR(tarihk2=\"\",'راس گیری چک'!$O326=\"\"), \"\", Diff(tarihk2,'راس گیری چک'!$O326))","v":""}]
[null,null,null,null,null,{"$f":"IF(OR(tarikh=\"\",D327=\"\"), \"\", Diff(tarikh,D327 ))","v":""},null,null,null,null,null,null,null,null,null,null,{"$f":"IF(OR(tarihk2=\"\",'راس گیری چک'!$O327=\"\"), \"\", Diff(tarihk2,'راس گیری چک'!$O327))","v":""}]
[null,null,null,null,null,{"$f":"IF(OR(tarikh=\"\",D328=\"\"), \"\", Diff(tarikh,D328 ))","v":""},null,null,null,null,null,null,null,null,null,null,{"$f":"IF(OR(tarihk2=\"\",'راس گیری چک'!$O328=\"\"), \"\", Diff(tarihk2,'راس گیری چک'!$O328))","v":""}]
[null,null,null,null,null,{"$f":"IF(OR(tarikh=\"\",D329=\"\"), \"\", Diff(tarikh,D329 ))","v":""},null,null,null,null,null,null,null,null,null,null,{"$f":"IF(OR(tarihk2=\"\",'راس گیری چک'!$O329=\"\"), \"\", Diff(tarihk2,'راس گیری چک'!$O329))","v":""}]
[null,null,null,null,null,{"$f":"IF(OR(tarikh=\"\",D330=\"\"), \"\", Diff(tarikh,D330 ))","v":""},null,null,null,null,null,null,null,null,null,null,{"$f":"IF(OR(tarihk2=\"\",'راس گیری چک'!$O330=\"\"), \"\", Diff(tarihk2,'راس گیری چک'!$O330))","v":""}]
[null,null,null,null,null,{"$f":"IF(OR(tarikh=\"\",D331=\"\"), \"\", Diff(tarikh,D331 ))","v":""},null,null,null,null,null,null,null,null,null,null,{"$f":"IF(OR(tarihk2=\"\",'راس گیری چک'!$O331=\"\"), \"\", Diff(tarihk2,'راس گیری چک'!$O331))","v":""}]
[null,null,null,null,null,{"$f":"IF(OR(tarikh=\"\",D332=\"\"), \"\", Diff(tarikh,D332 ))","v":""},null,null,null,null,null,null,null,null,null,null,{"$f":"IF(OR(tarihk2=\"\",'راس گیری چک'!$O332=\"\"), \"\", Diff(tarihk2,'راس گیری چک'!$O332))","v":""}]
[null,null,null,null,null,{"$f":"IF(OR(tarikh=\"\",D333=\"\"), \"\", Diff(tarikh,D333 ))","v":""},null,null,null,null,null,null,null,null,null,null,{"$f":"IF(OR(tarihk2=\"\",'راس گیری چک'!$O333=\"\"), \"\", Diff(tarihk2,'راس گیری چک'!$O333))","v":""}]
[null,null,null,null,null,{"$f":"IF(OR(tarikh=\"\",D334=\"\"), \"\", Diff(tarikh,D334 ))","v":""},null,null,null,null,null,null,null,null,null,null,{"$f":"IF(OR(tarihk2=\"\",'راس گیری چک'!$O334=\"\"), \"\", Diff(tarihk2,'راس گیری چک'!$O334))","v":""}]
[null,null,null,null,null,{"$f":"IF(OR(tarikh=\"\",D335=\"\"), \"\", Diff(tarikh,D335 ))","v":""},null,null,null,null,null,null,null,null,null,null,{"$f":"IF(OR(tarihk2=\"\",'راس گیری چک'!$O335=\"\"), \"\", Diff(tarihk2,'راس گیری چک'!$O335))","v":""}]
[null,null,null,null,null,{"$f":"IF(OR(tarikh=\"\",D336=\"\"), \"\", Diff(tarikh,D336 ))","v":""},null,null,null,null,null,null,null,null,null,null,{"$f":"IF(OR(tarihk2=\"\",'راس گیری چک'!$O336=\"\"), \"\", Diff(tarihk2,'راس گیری چک'!$O336))","v":""}]
[null,null,null,null,null,{"$f":"IF(OR(tarikh=\"\",D337=\"\"), \"\", Diff(tarikh,D337 ))","v":""},null,null,null,null,null,null,null,null,null,null,{"$f":"IF(OR(tarihk2=\"\",'راس گیری چک'!$O337=\"\"), \"\", Diff(tarihk2,'راس گیری چک'!$O337))","v":""}]
[null,null,null,null,null,{"$f":"IF(OR(tarikh=\"\",D338=\"\"), \"\", Diff(tarikh,D338 ))","v":""},null,null,null,null,null,null,null,null,null,null,{"$f":"IF(OR(tarihk2=\"\",'راس گیری چک'!$O338=\"\"), \"\", Diff(tarihk2,'راس گیری چک'!$O338))","v":""}]
[null,null,null,null,null,{"$f":"IF(OR(tarikh=\"\",D339=\"\"), \"\", Diff(tarikh,D339 ))","v":""},null,null,null,null,null,null,null,null,null,null,{"$f":"IF(OR(tarihk2=\"\",'راس گیری چک'!$O339=\"\"), \"\", Diff(tarihk2,'راس گیری چک'!$O339))","v":""}]
[null,null,null,null,null,{"$f":"IF(OR(tarikh=\"\",D340=\"\"), \"\", Diff(tarikh,D340 ))","v":""},null,null,null,null,null,null,null,null,null,null,{"$f":"IF(OR(tarihk2=\"\",'راس گیری چک'!$O340=\"\"), \"\", Diff(tarihk2,'راس گیری چک'!$O340))","v":""}]
[null,null,null,null,null,{"$f":"IF(OR(tarikh=\"\",D341=\"\"), \"\", Diff(tarikh,D341 ))","v":""},null,null,null,null,null,null,null,null,null,null,{"$f":"IF(OR(tarihk2=\"\",'راس گیری چک'!$O341=\"\"), \"\", Diff(tarihk2,'راس گیری چک'!$O341))","v":""}]
[null,null,null,null,null,{"$f":"IF(OR(tarikh=\"\",D342=\"\"), \"\", Diff(tarikh,D342 ))","v":""},null,null,null,null,null,null,null,null,null,null,{"$f":"IF(OR(tarihk2=\"\",'راس گیری چک'!$O342=\"\"), \"\", Diff(tarihk2,'راس گیری چک'!$O342))","v":""}]
[null,null,null,null,null,{"$f":"IF(OR(tarikh=\"\",D343=\"\"), \"\", Diff(tarikh,D343 ))","v":""},null,null,null,null,null,null,null,null,null,null,{"$f":"IF(OR(tarihk2=\"\",'راس گیری چک'!$O343=\"\"), \"\", Diff(tarihk2,'راس گیری چک'!$O343))","v":""}]
[null,null,null,null,null,{"$f":"IF(OR(tarikh=\"\",D344=\"\"), \"\", Diff(tarikh,D344 ))","v":""},null,null,null,null,null,null,null,null,null,null,{"$f":"IF(OR(tarihk2=\"\",'راس گیری چک'!$O344=\"\"), \"\", Diff(tarihk2,'راس گیری چک'!$O344))","v":""}]
[null,null,null,null,null,{"$f":"IF(OR(tarikh=\"\",D345=\"\"), \"\", Diff(tarikh,D345 ))","v":""},null,null,null,null,null,null,null,null,null,null,{"$f":"IF(OR(tarihk2=\"\",'راس گیری چک'!$O345=\"\"), \"\", Diff(tarihk2,'راس گیری چک'!$O345))","v":""}]
[null,null,null,null,null,{"$f":"IF(OR(tarikh=\"\",D346=\"\"), \"\", Diff(tarikh,D346 ))","v":""},null,null,null,null,null,null,null,null,null,null,{"$f":"IF(OR(tarihk2=\"\",'راس گیری چک'!$O346=\"\"), \"\", Diff(tarihk2,'راس گیری چک'!$O346))","v":""}]
[null,null,null,null,null,{"$f":"IF(OR(tarikh=\"\",D347=\"\"), \"\", Diff(tarikh,D347 ))","v":""},null,null,null,null,null,null,null,null,null,null,{"$f":"IF(OR(tarihk2=\"\",'راس گیری چک'!$O347=\"\"), \"\", Diff(tarihk2,'راس گیری چک'!$O347))","v":""}]
[null,null,null,null,null,{"$f":"IF(OR(tarikh=\"\",D348=\"\"), \"\", Diff(tarikh,D348 ))","v":""},null,null,null,null,null,null,null,null,null,null,{"$f":"IF(OR(tarihk2=\"\",'راس گیری چک'!$O348=\"\"), \"\", Diff(tarihk2,'راس گیری چک'!$O348))","v":""}]
[null,null,null,null,null,{"$f":"IF(OR(tarikh=\"\",D349=\"\"), \"\", Diff(tarikh,D349 ))","v":""},null,null,null,null,null,null,null,null,null,null,{"$f":"IF(OR(tarihk2=\"\",'راس گیری چک'!$O349=\"\"), \"\", Diff(tarihk2,'راس گیری چک'!$O349))","v":""}]
[null,null,null,null,null,{"$f":"IF(OR(tarikh=\"\",D350=\"\"), \"\", Diff(tarikh,D350 ))","v":""},null,null,null,null,null,null,null,null,null,null,{"$f":"IF(OR(tarihk2=\"\",'راس گیری چک'!$O350=\"\"), \"\", Diff(tarihk2,'راس گیری چک'!$O350))","v":""}]
[null,null,null,null,null,{"$f":"IF(OR(tarikh=\"\",D351=\"\"), \"\", Diff(tarikh,D351 ))","v":""},null,null,null,null,null,null,null,null,null,null,{"$f":"IF(OR(tarihk2=\"\",'راس گیری چک'!$O351=\"\"), \"\", Diff(tarihk2,'راس گیری چک'!$O351))","v":""}]
[null,null,null,null,null,{"$f":"IF(OR(tarikh=\"\",D352=\"\"), \"\", Diff(tarikh,D352 ))","v":""},null,null,null,null,null,null,null,null,null,null,{"$f":"IF(OR(tarihk2=\"\",'راس گیری چک'!$O352=\"\"), \"\", Diff(tarihk2,'راس گیری چک'!$O352))","v":""}]
[null,null,null,null,null,{"$f":"IF(OR(tarikh=\"\",D353=\"\"), \"\", Diff(tarikh,D353 ))","v":""},null,null,null,null,null,null,null,null,null,null,{"$f":"IF(OR(tarihk2=\"\",'راس گیری چک'!$O353=\"\"), \"\", Diff(tarihk2,'راس گیری چک'!$O353))","v":""}]
[null,null,null,null,null,{"$f":"IF(OR(tarikh=\"\",D354=\"\"), \"\", Diff(tarikh,D354 ))","v":""},null,null,null,null,null,null,null,null,null,null,{"$f":"IF(OR(tarihk2=\"\",'راس گیری چک'!$O354=\"\"), \"\", Diff(tarihk2,'راس گیری چک'!$O354))","v":""}]
[null,null,null,null,null,{"$f":"IF(OR(tarikh=\"\",D355=\"\"), \"\", Diff(tarikh,D355 ))","v":""},null,null,null,null,null,null,null,null,null,null,{"$f":"IF(OR(tarihk2=\"\",'راس گیری چک'!$O355=\"\"), \"\", Diff(tarihk2,'راس گیری چک'!$O355))","v":""}]
[null,null,null,null,null,{"$f":"IF(OR(tarikh=\"\",D356=\"\"), \"\", Diff(tarikh,D356 ))","v":""},null,null,null,null,null,null,null,null,null,null,{"$f":"IF(OR(tarihk2=\"\",'راس گیری چک'!$O356=\"\"), \"\", Diff(tarihk2,'راس گیری چک'!$O356))","v":""}]
[null,null,null,null,null,{"$f":"IF(OR(tarikh=\"\",D357=\"\"), \"\", Diff(tarikh,D357 ))","v":""},null,null,null,null,null,null,null,null,null,null,{"$f":"IF(OR(tarihk2=\"\",'راس گیری چک'!$O357=\"\"), \"\", Diff(tarihk2,'راس گیری چک'!$O357))","v":""}]
[null,null,null,null,null,{"$f":"IF(OR(tarikh=\"\",D358=\"\"), \"\", Diff(tarikh,D358 ))","v":""},null,null,null,null,null,null,null,null,null,null,{"$f":"IF(OR(tarihk2=\"\",'راس گیری چک'!$O358=\"\"), \"\", Diff(tarihk2,'راس گیری چک'!$O358))","v":""}]
[null,null,null,null,null,{"$f":"IF(OR(tarikh=\"\",D359=\"\"), \"\", Diff(tarikh,D359 ))","v":""},null,null,null,null,null,null,null,null,null,null,{"$f":"IF(OR(tarihk2=\"\",'راس گیری چک'!$O359=\"\"), \"\", Diff(tarihk2,'راس گیری چک'!$O359))","v":""}]
[null,null,null,null,null,{"$f":"IF(OR(tarikh=\"\",D360=\"\"), \"\", Diff(tarikh,D360 ))","v":""},null,null,null,null,null,null,null,null,null,null,{"$f":"IF(OR(tarihk2=\"\",'راس گیری چک'!$O360=\"\"), \"\", Diff(tarihk2,'راس گیری چک'!$O360))","v":""}]
[null,null,null,null,null,{"$f":"IF(OR(tarikh=\"\",D361=\"\"), \"\", Diff(tarikh,D361 ))","v":""},null,null,null,null,null,null,null,null,null,null,{"$f":"IF(OR(tarihk2=\"\",'راس گیری چک'!$O361=\"\"), \"\", Diff(tarihk2,'راس گیری چک'!$O361))","v":""}]
[null,null,null,null,null,{"$f":"IF(OR(tarikh=\"\",D362=\"\"), \"\", Diff(tarikh,D362 ))","v":""},null,null,null,null,null,null,null,null,null,null,{"$f":"IF(OR(tarihk2=\"\",'راس گیری چک'!$O362=\"\"), \"\", Diff(tarihk2,'راس گیری چک'!$O362))","v":""}]
[null,null,null,null,null,{"$f":"IF(OR(tarikh=\"\",D363=\"\"), \"\", Diff(tarikh,D363 ))","v":""},null,null,null,null,null,null,null,null,null,null,{"$f":"IF(OR(tarihk2=\"\",'راس گیری چک'!$O363=\"\"), \"\", Diff(tarihk2,'راس گیری چک'!$O363))","v":""}]
[null,null,null,null,null,{"$f":"IF(OR(tarikh=\"\",D364=\"\"), \"\", Diff(tarikh,D364 ))","v":""},null,null,null,null,null,null,null,null,null,null,{"$f":"IF(OR(tarihk2=\"\",'راس گیری چک'!$O364=\"\"), \"\", Diff(tarihk2,'راس گیری چک'!$O364))","v":""}]
[null,null,null,null,null,{"$f":"IF(OR(tarikh=\"\",D365=\"\"), \"\", Diff(tarikh,D365 ))","v":""},null,null,null,null,null,null,null,null,null,null,{"$f":"IF(OR(tarihk2=\"\",'راس گیری چک'!$O365=\"\"), \"\", Diff(tarihk2,'راس گیری چک'!$O365))","v":""}]
[null,null,null,null,null,{"$f":"IF(OR(tarikh=\"\",D366=\"\"), \"\", Diff(tarikh,D366 ))","v":""},null,null,null,null,null,null,null,null,null,null,{"$f":"IF(OR(tarihk2=\"\",'راس گیری چک'!$O366=\"\"), \"\", Diff(tarihk2,'راس گیری چک'!$O366))","v":""}]
[null,null,null,null,null,{"$f":"IF(OR(tarikh=\"\",D367=\"\"), \"\", Diff(tarikh,D367 ))","v":""},null,null,null,null,null,null,null,null,null,null,{"$f":"IF(OR(tarihk2=\"\",'راس گیری چک'!$O367=\"\"), \"\", Diff(tarihk2,'راس گیری چک'!$O367))","v":""}]
[null,null,null,null,null,{"$f":"IF(OR(tarikh=\"\",D368=\"\"), \"\", Diff(tarikh,D368 ))","v":""},null,null,null,null,null,null,null,null,null,null,{"$f":"IF(OR(tarihk2=\"\",'راس گیری چک'!$O368=\"\"), \"\", Diff(tarihk2,'راس گیری چک'!$O368))","v":""}]
[null,null,null,null,null,{"$f":"IF(OR(tarikh=\"\",D369=\"\"), \"\", Diff(tarikh,D369 ))","v":""},null,null,null,null,null,null,null,null,null,null,{"$f":"IF(OR(tarihk2=\"\",'راس گیری چک'!$O369=\"\"), \"\", Diff(tarihk2,'راس گیری چک'!$O369))","v":""}]
[null,null,null,null,null,{"$f":"IF(OR(tarikh=\"\",D370=\"\"), \"\", Diff(tarikh,D370 ))","v":""},null,null,null,null,null,null,null,null,null,null,{"$f":"IF(OR(tarihk2=\"\",'راس گیری چک'!$O370=\"\"), \"\", Diff(tarihk2,'راس گیری چک'!$O370))","v":""}]
[null,null,null,null,null,{"$f":"IF(OR(tarikh=\"\",D371=\"\"), \"\", Diff(tarikh,D371 ))","v":""},null,null,null,null,null,null,null,null,null,null,{"$f":"IF(OR(tarihk2=\"\",'راس گیری چک'!$O371=\"\"), \"\", Diff(tarihk2,'راس گیری چک'!$O371))","v":""}]
[null,null,null,null,null,{"$f":"IF(OR(tarikh=\"\",D372=\"\"), \"\", Diff(tarikh,D372 ))","v":""},null,null,null,null,null,null,null,null,null,null,{"$f":"IF(OR(tarihk2=\"\",'راس گیری چک'!$O372=\"\"), \"\", Diff(tarihk2,'راس گیری چک'!$O372))","v":""}]
[null,null,null,null,null,{"$f":"IF(OR(tarikh=\"\",D373=\"\"), \"\", Diff(tarikh,D373 ))","v":""},null,null,null,null,null,null,null,null,null,null,{"$f":"IF(OR(tarihk2=\"\",'راس گیری چک'!$O373=\"\"), \"\", Diff(tarihk2,'راس گیری چک'!$O373))","v":""}]
[null,null,null,null,null,{"$f":"IF(OR(tarikh=\"\",D374=\"\"), \"\", Diff(tarikh,D374 ))","v":""},null,null,null,null,null,null,null,null,null,null,{"$f":"IF(OR(tarihk2=\"\",'راس گیری چک'!$O374=\"\"), \"\", Diff(tarihk2,'راس گیری چک'!$O374))","v":""}]
[null,null,null,null,null,{"$f":"IF(OR(tarikh=\"\",D375=\"\"), \"\", Diff(tarikh,D375 ))","v":""},null,null,null,null,null,null,null,null,null,null,{"$f":"IF(OR(tarihk2=\"\",'راس گیری چک'!$O375=\"\"), \"\", Diff(tarihk2,'راس گیری چک'!$O375))","v":""}]
[null,null,null,null,null,{"$f":"IF(OR(tarikh=\"\",D376=\"\"), \"\", Diff(tarikh,D376 ))","v":""},null,null,null,null,null,null,null,null,null,null,{"$f":"IF(OR(tarihk2=\"\",'راس گیری چک'!$O376=\"\"), \"\", Diff(tarihk2,'راس گیری چک'!$O376))","v":""}]
[null,null,null,null,null,{"$f":"IF(OR(tarikh=\"\",D377=\"\"), \"\", Diff(tarikh,D377 ))","v":""},null,null,null,null,null,null,null,null,null,null,{"$f":"IF(OR(tarihk2=\"\",'راس گیری چک'!$O377=\"\"), \"\", Diff(tarihk2,'راس گیری چک'!$O377))","v":""}]
[null,null,null,null,null,{"$f":"IF(OR(tarikh=\"\",D378=\"\"), \"\", Diff(tarikh,D378 ))","v":""},null,null,null,null,null,null,null,null,null,null,{"$f":"IF(OR(tarihk2=\"\",'راس گیری چک'!$O378=\"\"), \"\", Diff(tarihk2,'راس گیری چک'!$O378))","v":""}]
[null,null,null,null,null,{"$f":"IF(OR(tarikh=\"\",D379=\"\"), \"\", Diff(tarikh,D379 ))","v":""},null,null,null,null,null,null,null,null,null,null,{"$f":"IF(OR(tarihk2=\"\",'راس گیری چک'!$O379=\"\"), \"\", Diff(tarihk2,'راس گیری چک'!$O379))","v":""}]
[null,null,null,null,null,{"$f":"IF(OR(tarikh=\"\",D380=\"\"), \"\", Diff(tarikh,D380 ))","v":""},null,null,null,null,null,null,null,null,null,null,{"$f":"IF(OR(tarihk2=\"\",'راس گیری چک'!$O380=\"\"), \"\", Diff(tarihk2,'راس گیری چک'!$O380))","v":""}]
[null,null,null,null,null,{"$f":"IF(OR(tarikh=\"\",D381=\"\"), \"\", Diff(tarikh,D381 ))","v":""},null,null,null,null,null,null,null,null,null,null,{"$f":"IF(OR(tarihk2=\"\",'راس گیری چک'!$O381=\"\"), \"\", Diff(tarihk2,'راس گیری چک'!$O381))","v":""}]
[null,null,null,null,null,{"$f":"IF(OR(tarikh=\"\",D382=\"\"), \"\", Diff(tarikh,D382 ))","v":""},null,null,null,null,null,null,null,null,null,null,{"$f":"IF(OR(tarihk2=\"\",'راس گیری چک'!$O382=\"\"), \"\", Diff(tarihk2,'راس گیری چک'!$O382))","v":""}]
[null,null,null,null,null,{"$f":"IF(OR(tarikh=\"\",D383=\"\"), \"\", Diff(tarikh,D383 ))","v":""},null,null,null,null,null,null,null,null,null,null,{"$f":"IF(OR(tarihk2=\"\",'راس گیری چک'!$O383=\"\"), \"\", Diff(tarihk2,'راس گیری چک'!$O383))","v":""}]
[null,null,null,null,null,{"$f":"IF(OR(tarikh=\"\",D384=\"\"), \"\", Diff(tarikh,D384 ))","v":""},null,null,null,null,null,null,null,null,null,null,{"$f":"IF(OR(tarihk2=\"\",'راس گیری چک'!$O384=\"\"), \"\", Diff(tarihk2,'راس گیری چک'!$O384))","v":""}]
[null,null,null,null,null,{"$f":"IF(OR(tarikh=\"\",D385=\"\"), \"\", Diff(tarikh,D385 ))","v":""},null,null,null,null,null,null,null,null,null,null,{"$f":"IF(OR(tarihk2=\"\",'راس گیری چک'!$O385=\"\"), \"\", Diff(tarihk2,'راس گیری چک'!$O385))","v":""}]
[null,null,null,null,null,{"$f":"IF(OR(tarikh=\"\",D386=\"\"), \"\", Diff(tarikh,D386 ))","v":""},null,null,null,null,null,null,null,null,null,null,{"$f":"IF(OR(tarihk2=\"\",'راس گیری چک'!$O386=\"\"), \"\", Diff(tarihk2,'راس گیری چک'!$O386))","v":""}]
[null,null,null,null,null,{"$f":"IF(OR(tarikh=\"\",D387=\"\"), \"\", Diff(tarikh,D387 ))","v":""},null,null,null,null,null,null,null,null,null,null,{"$f":"IF(OR(tarihk2=\"\",'راس گیری چک'!$O387=\"\"), \"\", Diff(tarihk2,'راس گیری چک'!$O387))","v":""}]
[null,null,null,null,null,{"$f":"IF(OR(tarikh=\"\",D388=\"\"), \"\", Diff(tarikh,D388 ))","v":""},null,null,null,null,null,null,null,null,null,null,{"$f":"IF(OR(tarihk2=\"\",'راس گیری چک'!$O388=\"\"), \"\", Diff(tarihk2,'راس گیری چک'!$O388))","v":""}]
[null,null,null,null,null,{"$f":"IF(OR(tarikh=\"\",D389=\"\"), \"\", Diff(tarikh,D389 ))","v":""},null,null,null,null,null,null,null,null,null,null,{"$f":"IF(OR(tarihk2=\"\",'راس گیری چک'!$O389=\"\"), \"\", Diff(tarihk2,'راس گیری چک'!$O389))","v":""}]
[null,null,null,null,null,{"$f":"IF(OR(tarikh=\"\",D390=\"\"), \"\", Diff(tarikh,D390 ))","v":""},null,null,null,null,null,null,null,null,null,null,{"$f":"IF(OR(tarihk2=\"\",'راس گیری چک'!$O390=\"\"), \"\", Diff(tarihk2,'راس گیری چک'!$O390))","v":""}]
[null,null,null,null,null,{"$f":"IF(OR(tarikh=\"\",D391=\"\"), \"\", Diff(tarikh,D391 ))","v":""},null,null,null,null,null,null,null,null,null,null,{"$f":"IF(OR(tarihk2=\"\",'راس گیری چک'!$O391=\"\"), \"\", Diff(tarihk2,'راس گیری چک'!$O391))","v":""}]
[null,null,null,null,null,{"$f":"IF(OR(tarikh=\"\",D392=\"\"), \"\", Diff(tarikh,D392 ))","v":""},null,null,null,null,null,null,null,null,null,null,{"$f":"IF(OR(tarihk2=\"\",'راس گیری چک'!$O392=\"\"), \"\", Diff(tarihk2,'راس گیری چک'!$O392))","v":""}]
[null,null,null,null,null,{"$f":"IF(OR(tarikh=\"\",D393=\"\"), \"\", Diff(tarikh,D393 ))","v":""},null,null,null,null,null,null,null,null,null,null,{"$f":"IF(OR(tarihk2=\"\",'راس گیری چک'!$O393=\"\"), \"\", Diff(tarihk2,'راس گیری چک'!$O393))","v":""}]
[null,null,null,null,null,{"$f":"IF(OR(tarikh=\"\",D394=\"\"), \"\", Diff(tarikh,D394 ))","v":""},null,null,null,null,null,null,null,null,null,null,{"$f":"IF(OR(tarihk2=\"\",'راس گیری چک'!$O394=\"\"), \"\", Diff(tarihk2,'راس گیری چک'!$O394))","v":""}]
[null,null,null,null,null,{"$f":"IF(OR(tarikh=\"\",D395=\"\"), \"\", Diff(tarikh,D395 ))","v":""},null,null,null,null,null,null,null,null,null,null,{"$f":"IF(OR(tarihk2=\"\",'راس گیری چک'!$O395=\"\"), \"\", Diff(tarihk2,'راس گیری چک'!$O395))","v":""}]
[null,null,null,null,null,{"$f":"IF(OR(tarikh=\"\",D396=\"\"), \"\", Diff(tarikh,D396 ))","v":""},null,null,null,null,null,null,null,null,null,null,{"$f":"IF(OR(tarihk2=\"\",'راس گیری چک'!$O396=\"\"), \"\", Diff(tarihk2,'راس گیری چک'!$O396))","v":""}]
[null,null,null,null,null,{"$f":"IF(OR(tarikh=\"\",D397=\"\"), \"\", Diff(tarikh,D397 ))","v":""},null,null,null,null,null,null,null,null,null,null,{"$f":"IF(OR(tarihk2=\"\",'راس گیری چک'!$O397=\"\"), \"\", Diff(tarihk2,'راس گیری چک'!$O397))","v":""}]
[null,null,null,null,null,{"$f":"IF(OR(tarikh=\"\",D398=\"\"), \"\", Diff(tarikh,D398 ))","v":""},null,null,null,null,null,null,null,null,null,null,{"$f":"IF(OR(tarihk2=\"\",'راس گیری چک'!$O398=\"\"), \"\", Diff(tarihk2,'راس گیری چک'!$O398))","v":""}]
[null,null,null,null,null,{"$f":"IF(OR(tarikh=\"\",D399=\"\"), \"\", Diff(tarikh,D399 ))","v":""},null,null,null,null,null,null,null,null,null,null,{"$f":"IF(OR(tarihk2=\"\",'راس گیری چک'!$O399=\"\"), \"\", Diff(tarihk2,'راس گیری چک'!$O399))","v":""}]
[null,null,null,null,null,{"$f":"IF(OR(tarikh=\"\",D400=\"\"), \"\", Diff(tarikh,D400 ))","v":""},null,null,null,null,null,null,null,null,null,null,{"$f":"IF(OR(tarihk2=\"\",'راس گیری چک'!$O400=\"\"), \"\", Diff(tarihk2,'راس گیری چک'!$O400))","v":""}]
[null,null,null,null,null,{"$f":"IF(OR(tarikh=\"\",D401=\"\"), \"\", Diff(tarikh,D401 ))","v":""},null,null,null,null,null,null,null,null,null,null,{"$f":"IF(OR(tarihk2=\"\",'راس گیری چک'!$O401=\"\"), \"\", Diff(tarihk2,'راس گیری چک'!$O401))","v":""}]
[null,null,null,null,null,{"$f":"IF(OR(tarikh=\"\",D402=\"\"), \"\", Diff(tarikh,D402 ))","v":""},null,null,null,null,null,null,null,null,null,null,{"$f":"IF(OR(tarihk2=\"\",'راس گیری چک'!$O402=\"\"), \"\", Diff(tarihk2,'راس گیری چک'!$O402))","v":""}]
[null,null,null,null,null,{"$f":"IF(OR(tarikh=\"\",D403=\"\"), \"\", Diff(tarikh,D403 ))","v":""},null,null,null,null,null,null,null,null,null,null,{"$f":"IF(OR(tarihk2=\"\",'راس گیری چک'!$O403=\"\"), \"\", Diff(tarihk2,'راس گیری چک'!$O403))","v":""}]
[null,null,null,null,null,{"$f":"IF(OR(tarikh=\"\",D404=\"\"), \"\", Diff(tarikh,D404 ))","v":""},null,null,null,null,null,null,null,null,null,null,{"$f":"IF(OR(tarihk2=\"\",'راس گیری چک'!$O404=\"\"), \"\", Diff(tarihk2,'راس گیری چک'!$O404))","v":""}]
[null,null,null,null,null,{"$f":"IF(OR(tarikh=\"\",D405=\"\"), \"\", Diff(tarikh,D405 ))","v":""},null,null,null,null,null,null,null,null,null,null,{"$f":"IF(OR(tarihk2=\"\",'راس گیری چک'!$O405=\"\"), \"\", Diff(tarihk2,'راس گیری چک'!$O405))","v":""}]
[null,null,null,null,null,{"$f":"IF(OR(tarikh=\"\",D406=\"\"), \"\", Diff(tarikh,D406 ))","v":""},null,null,null,null,null,null,null,null,null,null,{"$f":"IF(OR(tarihk2=\"\",'راس گیری چک'!$O406=\"\"), \"\", Diff(tarihk2,'راس گیری چک'!$O406))","v":""}]
[null,null,null,null,null,{"$f":"IF(OR(tarikh=\"\",D407=\"\"), \"\", Diff(tarikh,D407 ))","v":""},null,null,null,null,null,null,null,null,null,null,{"$f":"IF(OR(tarihk2=\"\",'راس گیری چک'!$O407=\"\"), \"\", Diff(tarihk2,'راس گیری چک'!$O407))","v":""}]
[null,null,null,null,null,{"$f":"IF(OR(tarikh=\"\",D408=\"\"), \"\", Diff(tarikh,D408 ))","v":""},null,null,null,null,null,null,null,null,null,null,{"$f":"IF(OR(tarihk2=\"\",'راس گیری چک'!$O408=\"\"), \"\", Diff(tarihk2,'راس گیری چک'!$O408))","v":""}]
[null,null,null,null,null,{"$f":"IF(OR(tarikh=\"\",D409=\"\"), \"\", Diff(tarikh,D409 ))","v":""},null,null,null,null,null,null,null,null,null,null,{"$f":"IF(OR(tarihk2=\"\",'راس گیری چک'!$O409=\"\"), \"\", Diff(tarihk2,'راس گیری چک'!$O409))","v":""}]
[null,null,null,null,null,{"$f":"IF(OR(tarikh=\"\",D410=\"\"), \"\", Diff(tarikh,D410 ))","v":""},null,null,null,null,null,null,null,null,null,null,{"$f":"IF(OR(tarihk2=\"\",'راس گیری چک'!$O410=\"\"), \"\", Diff(tarihk2,'راس گیری چک'!$O410))","v":""}]
[null,null,null,null,null,{"$f":"IF(OR(tarikh=\"\",D411=\"\"), \"\", Diff(tarikh,D411 ))","v":""},null,null,null,null,null,null,null,null,null,null,{"$f":"IF(OR(tarihk2=\"\",'راس گیری چک'!$O411=\"\"), \"\", Diff(tarihk2,'راس گیری چک'!$O411))","v":""}]
[null,null,null,null,null,{"$f":"IF(OR(tarikh=\"\",D412=\"\"), \"\", Diff(tarikh,D412 ))","v":""},null,null,null,null,null,null,null,null,null,null,{"$f":"IF(OR(tarihk2=\"\",'راس گیری چک'!$O412=\"\"), \"\", Diff(tarihk2,'راس گیری چک'!$O412))","v":""}]
[null,null,null,null,null,{"$f":"IF(OR(tarikh=\"\",D413=\"\"), \"\", Diff(tarikh,D413 ))","v":""},null,null,null,null,null,null,null,null,null,null,{"$f":"IF(OR(tarihk2=\"\",'راس گیری چک'!$O413=\"\"), \"\", Diff(tarihk2,'راس گیری چک'!$O413))","v":""}]
[null,null,null,null,null,{"$f":"IF(OR(tarikh=\"\",D414=\"\"), \"\", Diff(tarikh,D414 ))","v":""},null,null,null,null,null,null,null,null,null,null,{"$f":"IF(OR(tarihk2=\"\",'راس گیری چک'!$O414=\"\"), \"\", Diff(tarihk2,'راس گیری چک'!$O414))","v":""}]
[null,null,null,null,null,{"$f":"IF(OR(tarikh=\"\",D415=\"\"), \"\", Diff(tarikh,D415 ))","v":""},null,null,null,null,null,null,null,null,null,null,{"$f":"IF(OR(tarihk2=\"\",'راس گیری چک'!$O415=\"\"), \"\", Diff(tarihk2,'راس گیری چک'!$O415))","v":""}]
[null,null,null,null,null,{"$f":"IF(OR(tarikh=\"\",D416=\"\"), \"\", Diff(tarikh,D416 ))","v":""},null,null,null,null,null,null,null,null,null,null,{"$f":"IF(OR(tarihk2=\"\",'راس گیری چک'!$O416=\"\"), \"\", Diff(tarihk2,'راس گیری چک'!$O416))","v":""}]
[null,null,null,null,null,{"$f":"IF(OR(tarikh=\"\",D417=\"\"), \"\", Diff(tarikh,D417 ))","v":""},null,null,null,null,null,null,null,null,null,null,{"$f":"IF(OR(tarihk2=\"\",'راس گیری چک'!$O417=\"\"), \"\", Diff(tarihk2,'راس گیری چک'!$O417))","v":""}]
[null,null,null,null,null,{"$f":"IF(OR(tarikh=\"\",D418=\"\"), \"\", Diff(tarikh,D418 ))","v":""},null,null,null,null,null,null,null,null,null,null,{"$f":"IF(OR(tarihk2=\"\",'راس گیری چک'!$O418=\"\"), \"\", Diff(tarihk2,'راس گیری چک'!$O418))","v":""}]
[null,null,null,null,null,{"$f":"IF(OR(tarikh=\"\",D419=\"\"), \"\", Diff(tarikh,D419 ))","v":""},null,null,null,null,null,null,null,null,null,null,{"$f":"IF(OR(tarihk2=\"\",'راس گیری چک'!$O419=\"\"), \"\", Diff(tarihk2,'راس گیری چک'!$O419))","v":""}]
[null,null,null,null,null,{"$f":"IF(OR(tarikh=\"\",D420=\"\"), \"\", Diff(tarikh,D420 ))","v":""},null,null,null,null,null,null,null,null,null,null,{"$f":"IF(OR(tarihk2=\"\",'راس گیری چک'!$O420=\"\"), \"\", Diff(tarihk2,'راس گیری چک'!$O420))","v":""}]
[null,null,null,null,null,{"$f":"IF(OR(tarikh=\"\",D421=\"\"), \"\", Diff(tarikh,D421 ))","v":""},null,null,null,null,null,null,null,null,null,null,{"$f":"IF(OR(tarihk2=\"\",'راس گیری چک'!$O421=\"\"), \"\", Diff(tarihk2,'راس گیری چک'!$O421))","v":""}]
[null,null,null,null,null,{"$f":"IF(OR(tarikh=\"\",D422=\"\"), \"\", Diff(tarikh,D422 ))","v":""},null,null,null,null,null,null,null,null,null,null,{"$f":"IF(OR(tarihk2=\"\",'راس گیری چک'!$O422=\"\"), \"\", Diff(tarihk2,'راس گیری چک'!$O422))","v":""}]
[null,null,null,null,null,{"$f":"IF(OR(tarikh=\"\",D423=\"\"), \"\", Diff(tarikh,D423 ))","v":""},null,null,null,null,null,null,null,null,null,null,{"$f":"IF(OR(tarihk2=\"\",'راس گیری چک'!$O423=\"\"), \"\", Diff(tarihk2,'راس گیری چک'!$O423))","v":""}]
[null,null,null,null,null,{"$f":"IF(OR(tarikh=\"\",D424=\"\"), \"\", Diff(tarikh,D424 ))","v":""},null,null,null,null,null,null,null,null,null,null,{"$f":"IF(OR(tarihk2=\"\",'راس گیری چک'!$O424=\"\"), \"\", Diff(tarihk2,'راس گیری چک'!$O424))","v":""}]
[null,null,null,null,null,{"$f":"IF(OR(tarikh=\"\",D425=\"\"), \"\", Diff(tarikh,D425 ))","v":""},null,null,null,null,null,null,null,null,null,null,{"$f":"IF(OR(tarihk2=\"\",'راس گیری چک'!$O425=\"\"), \"\", Diff(tarihk2,'راس گیری چک'!$O425))","v":""}]
[null,null,null,null,null,{"$f":"IF(OR(tarikh=\"\",D426=\"\"), \"\", Diff(tarikh,D426 ))","v":""},null,null,null,null,null,null,null,null,null,null,{"$f":"IF(OR(tarihk2=\"\",'راس گیری چک'!$O426=\"\"), \"\", Diff(tarihk2,'راس گیری چک'!$O426))","v":""}]
[null,null,null,null,null,{"$f":"IF(OR(tarikh=\"\",D427=\"\"), \"\", Diff(tarikh,D427 ))","v":""},null,null,null,null,null,null,null,null,null,null,{"$f":"IF(OR(tarihk2=\"\",'راس گیری چک'!$O427=\"\"), \"\", Diff(tarihk2,'راس گیری چک'!$O427))","v":""}]
[null,null,null,null,null,{"$f":"IF(OR(tarikh=\"\",D428=\"\"), \"\", Diff(tarikh,D428 ))","v":""},null,null,null,null,null,null,null,null,null,null,{"$f":"IF(OR(tarihk2=\"\",'راس گیری چک'!$O428=\"\"), \"\", Diff(tarihk2,'راس گیری چک'!$O428))","v":""}]
[null,null,null,null,null,{"$f":"IF(OR(tarikh=\"\",D429=\"\"), \"\", Diff(tarikh,D429 ))","v":""},null,null,null,null,null,null,null,null,null,null,{"$f":"IF(OR(tarihk2=\"\",'راس گیری چک'!$O429=\"\"), \"\", Diff(tarihk2,'راس گیری چک'!$O429))","v":""}]
[null,null,null,null,null,{"$f":"IF(OR(tarikh=\"\",D430=\"\"), \"\", Diff(tarikh,D430 ))","v":""},null,null,null,null,null,null,null,null,null,null,{"$f":"IF(OR(tarihk2=\"\",'راس گیری چک'!$O430=\"\"), \"\", Diff(tarihk2,'راس گیری چک'!$O430))","v":""}]
[null,null,null,null,null,{"$f":"IF(OR(tarikh=\"\",D431=\"\"), \"\", Diff(tarikh,D431 ))","v":""},null,null,null,null,null,null,null,null,null,null,{"$f":"IF(OR(tarihk2=\"\",'راس گیری چک'!$O431=\"\"), \"\", Diff(tarihk2,'راس گیری چک'!$O431))","v":""}]
[null,null,null,null,null,{"$f":"IF(OR(tarikh=\"\",D432=\"\"), \"\", Diff(tarikh,D432 ))","v":""},null,null,null,null,null,null,null,null,null,null,{"$f":"IF(OR(tarihk2=\"\",'راس گیری چک'!$O432=\"\"), \"\", Diff(tarihk2,'راس گیری چک'!$O432))","v":""}]
[null,null,null,null,null,{"$f":"IF(OR(tarikh=\"\",D433=\"\"), \"\", Diff(tarikh,D433 ))","v":""},null,null,null,null,null,null,null,null,null,null,{"$f":"IF(OR(tarihk2=\"\",'راس گیری چک'!$O433=\"\"), \"\", Diff(tarihk2,'راس گیری چک'!$O433))","v":""}]
[null,null,null,null,null,{"$f":"IF(OR(tarikh=\"\",D434=\"\"), \"\", Diff(tarikh,D434 ))","v":""},null,null,null,null,null,null,null,null,null,null,{"$f":"IF(OR(tarihk2=\"\",'راس گیری چک'!$O434=\"\"), \"\", Diff(tarihk2,'راس گیری چک'!$O434))","v":""}]
[null,null,null,null,null,{"$f":"IF(OR(tarikh=\"\",D435=\"\"), \"\", Diff(tarikh,D435 ))","v":""},null,null,null,null,null,null,null,null,null,null,{"$f":"IF(OR(tarihk2=\"\",'راس گیری چک'!$O435=\"\"), \"\", Diff(tarihk2,'راس گیری چک'!$O435))","v":""}]
[null,null,null,null,null,{"$f":"IF(OR(tarikh=\"\",D436=\"\"), \"\", Diff(tarikh,D436 ))","v":""},null,null,null,null,null,null,null,null,null,null,{"$f":"IF(OR(tarihk2=\"\",'راس گیری چک'!$O436=\"\"), \"\", Diff(tarihk2,'راس گیری چک'!$O436))","v":""}]
[null,null,null,null,null,{"$f":"IF(OR(tarikh=\"\",D437=\"\"), \"\", Diff(tarikh,D437 ))","v":""},null,null,null,null,null,null,null,null,null,null,{"$f":"IF(OR(tarihk2=\"\",'راس گیری چک'!$O437=\"\"), \"\", Diff(tarihk2,'راس گیری چک'!$O437))","v":""}]
[null,null,null,null,null,{"$f":"IF(OR(tarikh=\"\",D438=\"\"), \"\", Diff(tarikh,D438 ))","v":""},null,null,null,null,null,null,null,null,null,null,{"$f":"IF(OR(tarihk2=\"\",'راس گیری چک'!$O438=\"\"), \"\", Diff(tarihk2,'راس گیری چک'!$O438))","v":""}]
[null,null,null,null,null,{"$f":"IF(OR(tarikh=\"\",D439=\"\"), \"\", Diff(tarikh,D439 ))","v":""},null,null,null,null,null,null,null,null,null,null,{"$f":"IF(OR(tarihk2=\"\",'راس گیری چک'!$O439=\"\"), \"\", Diff(tarihk2,'راس گیری چک'!$O439))","v":""}]
[null,null,null,null,null,{"$f":"IF(OR(tarikh=\"\",D440=\"\"), \"\", Diff(tarikh,D440 ))","v":""},null,null,null,null,null,null,null,null,null,null,{"$f":"IF(OR(tarihk2=\"\",'راس گیری چک'!$O440=\"\"), \"\", Diff(tarihk2,'راس گیری چک'!$O440))","v":""}]
[null,null,null,null,null,{"$f":"IF(OR(tarikh=\"\",D441=\"\"), \"\", Diff(tarikh,D441 ))","v":""},null,null,null,null,null,null,null,null,null,null,{"$f":"IF(OR(tarihk2=\"\",'راس گیری چک'!$O441=\"\"), \"\", Diff(tarihk2,'راس گیری چک'!$O441))","v":""}]
[null,null,null,null,null,{"$f":"IF(OR(tarikh=\"\",D442=\"\"), \"\", Diff(tarikh,D442 ))","v":""},null,null,null,null,null,null,null,null,null,null,{"$f":"IF(OR(tarihk2=\"\",'راس گیری چک'!$O442=\"\"), \"\", Diff(tarihk2,'راس گیری چک'!$O442))","v":""}]
[null,null,null,null,null,{"$f":"IF(OR(tarikh=\"\",D443=\"\"), \"\", Diff(tarikh,D443 ))","v":""},null,null,null,null,null,null,null,null,null,null,{"$f":"IF(OR(tarihk2=\"\",'راس گیری چک'!$O443=\"\"), \"\", Diff(tarihk2,'راس گیری چک'!$O443))","v":""}]
[null,null,null,null,null,{"$f":"IF(OR(tarikh=\"\",D444=\"\"), \"\", Diff(tarikh,D444 ))","v":""},null,null,null,null,null,null,null,null,null,null,{"$f":"IF(OR(tarihk2=\"\",'راس گیری چک'!$O444=\"\"), \"\", Diff(tarihk2,'راس گیری چک'!$O444))","v":""}]
[null,null,null,null,null,{"$f":"IF(OR(tarikh=\"\",D445=\"\"), \"\", Diff(tarikh,D445 ))","v":""},null,null,null,null,null,null,null,null,null,null,{"$f":"IF(OR(tarihk2=\"\",'راس گیری چک'!$O445=\"\"), \"\", Diff(tarihk2,'راس گیری چک'!$O445))","v":""}]
[null,null,null,null,null,{"$f":"IF(OR(tarikh=\"\",D446=\"\"), \"\", Diff(tarikh,D446 ))","v":""},null,null,null,null,null,null,null,null,null,null,{"$f":"IF(OR(tarihk2=\"\",'راس گیری چک'!$O446=\"\"), \"\", Diff(tarihk2,'راس گیری چک'!$O446))","v":""}]
[null,null,null,null,null,{"$f":"IF(OR(tarikh=\"\",D447=\"\"), \"\", Diff(tarikh,D447 ))","v":""},null,null,null,null,null,null,null,null,null,null,{"$f":"IF(OR(tarihk2=\"\",'راس گیری چک'!$O447=\"\"), \"\", Diff(tarihk2,'راس گیری چک'!$O447))","v":""}]
[null,null,null,null,null,{"$f":"IF(OR(tarikh=\"\",D448=\"\"), \"\", Diff(tarikh,D448 ))","v":""},null,null,null,null,null,null,null,null,null,null,{"$f":"IF(OR(tarihk2=\"\",'راس گیری چک'!$O448=\"\"), \"\", Diff(tarihk2,'راس گیری چک'!$O448))","v":""}]
[null,null,null,null,null,{"$f":"IF(OR(tarikh=\"\",D449=\"\"), \"\", Diff(tarikh,D449 ))","v":""},null,null,null,null,null,null,null,null,null,null,{"$f":"IF(OR(tarihk2=\"\",'راس گیری چک'!$O449=\"\"), \"\", Diff(tarihk2,'راس گیری چک'!$O449))","v":""}]
[null,null,null,null,null,{"$f":"IF(OR(tarikh=\"\",D450=\"\"), \"\", Diff(tarikh,D450 ))","v":""},null,null,null,null,null,null,null,null,null,null,{"$f":"IF(OR(tarihk2=\"\",'راس گیری چک'!$O450=\"\"), \"\", Diff(tarihk2,'راس گیری چک'!$O450))","v":""}]
[null,null,null,null,null,{"$f":"IF(OR(tarikh=\"\",D451=\"\"), \"\", Diff(tarikh,D451 ))","v":""},null,null,null,null,null,null,null,null,null,null,{"$f":"IF(OR(tarihk2=\"\",'راس گیری چک'!$O451=\"\"), \"\", Diff(tarihk2,'راس گیری چک'!$O451))","v":""}]
[null,null,null,null,null,{"$f":"IF(OR(tarikh=\"\",D452=\"\"), \"\", Diff(tarikh,D452 ))","v":""},null,null,null,null,null,null,null,null,null,null,{"$f":"IF(OR(tarihk2=\"\",'راس گیری چک'!$O452=\"\"), \"\", Diff(tarihk2,'راس گیری چک'!$O452))","v":""}]
[null,null,null,null,null,{"$f":"IF(OR(tarikh=\"\",D453=\"\"), \"\", Diff(tarikh,D453 ))","v":""},null,null,null,null,null,null,null,null,null,null,{"$f":"IF(OR(tarihk2=\"\",'راس گیری چک'!$O453=\"\"), \"\", Diff(tarihk2,'راس گیری چک'!$O453))","v":""}]
[null,null,null,null,null,{"$f":"IF(OR(tarikh=\"\",D454=\"\"), \"\", Diff(tarikh,D454 ))","v":""},null,null,null,null,null,null,null,null,null,null,{"$f":"IF(OR(tarihk2=\"\",'راس گیری چک'!$O454=\"\"), \"\", Diff(tarihk2,'راس گیری چک'!$O454))","v":""}]
[null,null,null,null,null,{"$f":"IF(OR(tarikh=\"\",D455=\"\"), \"\", Diff(tarikh,D455 ))","v":""},null,null,null,null,null,null,null,null,null,null,{"$f":"IF(OR(tarihk2=\"\",'راس گیری چک'!$O455=\"\"), \"\", Diff(tarihk2,'راس گیری چک'!$O455))","v":""}]
[null,null,null,null,null,{"$f":"IF(OR(tarikh=\"\",D456=\"\"), \"\", Diff(tarikh,D456 ))","v":""},null,null,null,null,null,null,null,null,null,null,{"$f":"IF(OR(tarihk2=\"\",'راس گیری چک'!$O456=\"\"), \"\", Diff(tarihk2,'راس گیری چک'!$O456))","v":""}]
[null,null,null,null,null,{"$f":"IF(OR(tarikh=\"\",D457=\"\"), \"\", Diff(tarikh,D457 ))","v":""},null,null,null,null,null,null,null,null,null,null,{"$f":"IF(OR(tarihk2=\"\",'راس گیری چک'!$O457=\"\"), \"\", Diff(tarihk2,'راس گیری چک'!$O457))","v":""}]
[null,null,null,null,null,{"$f":"IF(OR(tarikh=\"\",D458=\"\"), \"\", Diff(tarikh,D458 ))","v":""},null,null,null,null,null,null,null,null,null,null,{"$f":"IF(OR(tarihk2=\"\",'راس گیری چک'!$O458=\"\"), \"\", Diff(tarihk2,'راس گیری چک'!$O458))","v":""}]
[null,null,null,null,null,{"$f":"IF(OR(tarikh=\"\",D459=\"\"), \"\", Diff(tarikh,D459 ))","v":""},null,null,null,null,null,null,null,null,null,null,{"$f":"IF(OR(tarihk2=\"\",'راس گیری چک'!$O459=\"\"), \"\", Diff(tarihk2,'راس گیری چک'!$O459))","v":""}]
[null,null,null,null,null,{"$f":"IF(OR(tarikh=\"\",D460=\"\"), \"\", Diff(tarikh,D460 ))","v":""},null,null,null,null,null,null,null,null,null,null,{"$f":"IF(OR(tarihk2=\"\",'راس گیری چک'!$O460=\"\"), \"\", Diff(tarihk2,'راس گیری چک'!$O460))","v":""}]
[null,null,null,null,null,{"$f":"IF(OR(tarikh=\"\",D461=\"\"), \"\", Diff(tarikh,D461 ))","v":""},null,null,null,null,null,null,null,null,null,null,{"$f":"IF(OR(tarihk2=\"\",'راس گیری چک'!$O461=\"\"), \"\", Diff(tarihk2,'راس گیری چک'!$O461))","v":""}]
[null,null,null,null,null,{"$f":"IF(OR(tarikh=\"\",D462=\"\"), \"\", Diff(tarikh,D462 ))","v":""},null,null,null,null,null,null,null,null,null,null,{"$f":"IF(OR(tarihk2=\"\",'راس گیری چک'!$O462=\"\"), \"\", Diff(tarihk2,'راس گیری چک'!$O462))","v":""}]
[null,null,null,null,null,{"$f":"IF(OR(tarikh=\"\",D463=\"\"), \"\", Diff(tarikh,D463 ))","v":""},null,null,null,null,null,null,null,null,null,null,{"$f":"IF(OR(tarihk2=\"\",'راس گیری چک'!$O463=\"\"), \"\", Diff(tarihk2,'راس گیری چک'!$O463))","v":""}]
[null,null,null,null,null,{"$f":"IF(OR(tarikh=\"\",D464=\"\"), \"\", Diff(tarikh,D464 ))","v":""},null,null,null,null,null,null,null,null,null,null,{"$f":"IF(OR(tarihk2=\"\",'راس گیری چک'!$O464=\"\"), \"\", Diff(tarihk2,'راس گیری چک'!$O464))","v":""}]
[null,null,null,null,null,{"$f":"IF(OR(tarikh=\"\",D465=\"\"), \"\", Diff(tarikh,D465 ))","v":""},null,null,null,null,null,null,null,null,null,null,{"$f":"IF(OR(tarihk2=\"\",'راس گیری چک'!$O465=\"\"), \"\", Diff(tarihk2,'راس گیری چک'!$O465))","v":""}]
[null,null,null,null,null,{"$f":"IF(OR(tarikh=\"\",D466=\"\"), \"\", Diff(tarikh,D466 ))","v":""},null,null,null,null,null,null,null,null,null,null,{"$f":"IF(OR(tarihk2=\"\",'راس گیری چک'!$O466=\"\"), \"\", Diff(tarihk2,'راس گیری چک'!$O466))","v":""}]
[null,null,null,null,null,{"$f":"IF(OR(tarikh=\"\",D467=\"\"), \"\", Diff(tarikh,D467 ))","v":""},null,null,null,null,null,null,null,null,null,null,{"$f":"IF(OR(tarihk2=\"\",'راس گیری چک'!$O467=\"\"), \"\", Diff(tarihk2,'راس گیری چک'!$O467))","v":""}]
[null,null,null,null,null,{"$f":"IF(OR(tarikh=\"\",D468=\"\"), \"\", Diff(tarikh,D468 ))","v":""},null,null,null,null,null,null,null,null,null,null,{"$f":"IF(OR(tarihk2=\"\",'راس گیری چک'!$O468=\"\"), \"\", Diff(tarihk2,'راس گیری چک'!$O468))","v":""}]
[null,null,null,null,null,{"$f":"IF(OR(tarikh=\"\",D469=\"\"), \"\", Diff(tarikh,D469 ))","v":""},null,null,null,null,null,null,null,null,null,null,{"$f":"IF(OR(tarihk2=\"\",'راس گیری چک'!$O469=\"\"), \"\", Diff(tarihk2,'راس گیری چک'!$O469))","v":""}]
[null,null,null,null,null,{"$f":"IF(OR(tarikh=\"\",D470=\"\"), \"\", Diff(tarikh,D470 ))","v":""},null,null,null,null,null,null,null,null,null,null,{"$f":"IF(OR(tarihk2=\"\",'راس گیری چک'!$O470=\"\"), \"\", Diff(tarihk2,'راس گیری چک'!$O470))","v":""}]
[null,null,null,null,null,{"$f":"IF(OR(tarikh=\"\",D471=\"\"), \"\", Diff(tarikh,D471 ))","v":""},null,null,null,null,null,null,null,null,null,null,{"$f":"IF(OR(tarihk2=\"\",'راس گیری چک'!$O471=\"\"), \"\", Diff(tarihk2,'راس گیری چک'!$O471))","v":""}]
[null,null,null,null,null,{"$f":"IF(OR(tarikh=\"\",D472=\"\"), \"\", Diff(tarikh,D472 ))","v":""},null,null,null,null,null,null,null,null,null,null,{"$f":"IF(OR(tarihk2=\"\",'راس گیری چک'!$O472=\"\"), \"\", Diff(tarihk2,'راس گیری چک'!$O472))","v":""}]
[null,null,null,null,null,{"$f":"IF(OR(tarikh=\"\",D473=\"\"), \"\", Diff(tarikh,D473 ))","v":""},null,null,null,null,null,null,null,null,null,null,{"$f":"IF(OR(tarihk2=\"\",'راس گیری چک'!$O473=\"\"), \"\", Diff(tarihk2,'راس گیری چک'!$O473))","v":""}]
[null,null,null,null,null,{"$f":"IF(OR(tarikh=\"\",D474=\"\"), \"\", Diff(tarikh,D474 ))","v":""},null,null,null,null,null,null,null,null,null,null,{"$f":"IF(OR(tarihk2=\"\",'راس گیری چک'!$O474=\"\"), \"\", Diff(tarihk2,'راس گیری چک'!$O474))","v":""}]
[null,null,null,null,null,{"$f":"IF(OR(tarikh=\"\",D475=\"\"), \"\", Diff(tarikh,D475 ))","v":""},null,null,null,null,null,null,null,null,null,null,{"$f":"IF(OR(tarihk2=\"\",'راس گیری چک'!$O475=\"\"), \"\", Diff(tarihk2,'راس گیری چک'!$O475))","v":""}]
[null,null,null,null,null,{"$f":"IF(OR(tarikh=\"\",D476=\"\"), \"\", Diff(tarikh,D476 ))","v":""},null,null,null,null,null,null,null,null,null,null,{"$f":"IF(OR(tarihk2=\"\",'راس گیری چک'!$O476=\"\"), \"\", Diff(tarihk2,'راس گیری چک'!$O476))","v":""}]
[null,null,null,null,null,{"$f":"IF(OR(tarikh=\"\",D477=\"\"), \"\", Diff(tarikh,D477 ))","v":""},null,null,null,null,null,null,null,null,null,null,{"$f":"IF(OR(tarihk2=\"\",'راس گیری چک'!$O477=\"\"), \"\", Diff(tarihk2,'راس گیری چک'!$O477))","v":""}]
[null,null,null,null,null,{"$f":"IF(OR(tarikh=\"\",D478=\"\"), \"\", Diff(tarikh,D478 ))","v":""},null,null,null,null,null,null,null,null,null,null,{"$f":"IF(OR(tarihk2=\"\",'راس گیری چک'!$O478=\"\"), \"\", Diff(tarihk2,'راس گیری چک'!$O478))","v":""}]
[null,null,null,null,null,{"$f":"IF(OR(tarikh=\"\",D479=\"\"), \"\", Diff(tarikh,D479 ))","v":""},null,null,null,null,null,null,null,null,null,null,{"$f":"IF(OR(tarihk2=\"\",'راس گیری چک'!$O479=\"\"), \"\", Diff(tarihk2,'راس گیری چک'!$O479))","v":""}]
[null,null,null,null,null,{"$f":"IF(OR(tarikh=\"\",D480=\"\"), \"\", Diff(tarikh,D480 ))","v":""},null,null,null,null,null,null,null,null,null,null,{"$f":"IF(OR(tarihk2=\"\",'راس گیری چک'!$O480=\"\"), \"\", Diff(tarihk2,'راس گیری چک'!$O480))","v":""}]
[null,null,null,null,null,{"$f":"IF(OR(tarikh=\"\",D481=\"\"), \"\", Diff(tarikh,D481 ))","v":""},null,null,null,null,null,null,null,null,null,null,{"$f":"IF(OR(tarihk2=\"\",'راس گیری چک'!$O481=\"\"), \"\", Diff(tarihk2,'راس گیری چک'!$O481))","v":""}]
[null,null,null,null,null,{"$f":"IF(OR(tarikh=\"\",D482=\"\"), \"\", Diff(tarikh,D482 ))","v":""},null,null,null,null,null,null,null,null,null,null,{"$f":"IF(OR(tarihk2=\"\",'راس گیری چک'!$O482=\"\"), \"\", Diff(tarihk2,'راس گیری چک'!$O482))","v":""}]
[null,null,null,null,null,{"$f":"IF(OR(tarikh=\"\",D483=\"\"), \"\", Diff(tarikh,D483 ))","v":""},null,null,null,null,null,null,null,null,null,null,{"$f":"IF(OR(tarihk2=\"\",'راس گیری چک'!$O483=\"\"), \"\", Diff(tarihk2,'راس گیری چک'!$O483))","v":""}]
[null,null,null,null,null,{"$f":"IF(OR(tarikh=\"\",D484=\"\"), \"\", Diff(tarikh,D484 ))","v":""},null,null,null,null,null,null,null,null,null,null,{"$f":"IF(OR(tarihk2=\"\",'راس گیری چک'!$O484=\"\"), \"\", Diff(tarihk2,'راس گیری چک'!$O484))","v":""}]
[null,null,null,null,null,{"$f":"IF(OR(tarikh=\"\",D485=\"\"), \"\", Diff(tarikh,D485 ))","v":""},null,null,null,null,null,null,null,null,null,null,{"$f":"IF(OR(tarihk2=\"\",'راس گیری چک'!$O485=\"\"), \"\", Diff(tarihk2,'راس گیری چک'!$O485))","v":""}]
[null,null,null,null,null,{"$f":"IF(OR(tarikh=\"\",D486=\"\"), \"\", Diff(tarikh,D486 ))","v":""},null,null,null,null,null,null,null,null,null,null,{"$f":"IF(OR(tarihk2=\"\",'راس گیری چک'!$O486=\"\"), \"\", Diff(tarihk2,'راس گیری چک'!$O486))","v":""}]
[null,null,null,null,null,{"$f":"IF(OR(tarikh=\"\",D487=\"\"), \"\", Diff(tarikh,D487 ))","v":""},null,null,null,null,null,null,null,null,null,null,{"$f":"IF(OR(tarihk2=\"\",'راس گیری چک'!$O487=\"\"), \"\", Diff(tarihk2,'راس گیری چک'!$O487))","v":""}]
[null,null,null,null,null,{"$f":"IF(OR(tarikh=\"\",D488=\"\"), \"\", Diff(tarikh,D488 ))","v":""},null,null,null,null,null,null,null,null,null,null,{"$f":"IF(OR(tarihk2=\"\",'راس گیری چک'!$O488=\"\"), \"\", Diff(tarihk2,'راس گیری چک'!$O488))","v":""}]
[null,null,null,null,null,{"$f":"IF(OR(tarikh=\"\",D489=\"\"), \"\", Diff(tarikh,D489 ))","v":""},null,null,null,null,null,null,null,null,null,null,{"$f":"IF(OR(tarihk2=\"\",'راس گیری چک'!$O489=\"\"), \"\", Diff(tarihk2,'راس گیری چک'!$O489))","v":""}]
[null,null,null,null,null,{"$f":"IF(OR(tarikh=\"\",D490=\"\"), \"\", Diff(tarikh,D490 ))","v":""},null,null,null,null,null,null,null,null,null,null,{"$f":"IF(OR(tarihk2=\"\",'راس گیری چک'!$O490=\"\"), \"\", Diff(tarihk2,'راس گیری چک'!$O490))","v":""}]
[null,null,null,null,null,{"$f":"IF(OR(tarikh=\"\",D491=\"\"), \"\", Diff(tarikh,D491 ))","v":""},null,null,null,null,null,null,null,null,null,null,{"$f":"IF(OR(tarihk2=\"\",'راس گیری چک'!$O491=\"\"), \"\", Diff(tarihk2,'راس گیری چک'!$O491))","v":""}]
[null,null,null,null,null,{"$f":"IF(OR(tarikh=\"\",D492=\"\"), \"\", Diff(tarikh,D492 ))","v":""},null,null,null,null,null,null,null,null,null,null,{"$f":"IF(OR(tarihk2=\"\",'راس گیری چک'!$O492=\"\"), \"\", Diff(tarihk2,'راس گیری چک'!$O492))","v":""}]
[null,null,null,null,null,{"$f":"IF(OR(tarikh=\"\",D493=\"\"), \"\", Diff(tarikh,D493 ))","v":""},null,null,null,null,null,null,null,null,null,null,{"$f":"IF(OR(tarihk2=\"\",'راس گیری چک'!$O493=\"\"), \"\", Diff(tarihk2,'راس گیری چک'!$O493))","v":""}]
[null,null,null,null,null,{"$f":"IF(OR(tarikh=\"\",D494=\"\"), \"\", Diff(tarikh,D494 ))","v":""},null,null,null,null,null,null,null,null,null,null,{"$f":"IF(OR(tarihk2=\"\",'راس گیری چک'!$O494=\"\"), \"\", Diff(tarihk2,'راس گیری چک'!$O494))","v":""}]
[null,null,null,null,null,{"$f":"IF(OR(tarikh=\"\",D495=\"\"), \"\", Diff(tarikh,D495 ))","v":""},null,null,null,null,null,null,null,null,null,null,{"$f":"IF(OR(tarihk2=\"\",'راس گیری چک'!$O495=\"\"), \"\", Diff(tarihk2,'راس گیری چک'!$O495))","v":""}]
[null,null,null,null,null,{"$f":"IF(OR(tarikh=\"\",D496=\"\"), \"\", Diff(tarikh,D496 ))","v":""},null,null,null,null,null,null,null,null,null,null,{"$f":"IF(OR(tarihk2=\"\",'راس گیری چک'!$O496=\"\"), \"\", Diff(tarihk2,'راس گیری چک'!$O496))","v":""}]
[null,null,null,null,null,{"$f":"IF(OR(tarikh=\"\",D497=\"\"), \"\", Diff(tarikh,D497 ))","v":""},null,null,null,null,null,null,null,null,null,null,{"$f":"IF(OR(tarihk2=\"\",'راس گیری چک'!$O497=\"\"), \"\", Diff(tarihk2,'راس گیری چک'!$O497))","v":""}]
[null,null,null,null,null,{"$f":"IF(OR(tarikh=\"\",D498=\"\"), \"\", Diff(tarikh,D498 ))","v":""},null,null,null,null,null,null,null,null,null,null,{"$f":"IF(OR(tarihk2=\"\",'راس گیری چک'!$O498=\"\"), \"\", Diff(tarihk2,'راس گیری چک'!$O498))","v":""}]
[null,null,null,null,null,{"$f":"IF(OR(tarikh=\"\",D499=\"\"), \"\", Diff(tarikh,D499 ))","v":""},null,null,null,null,null,null,null,null,null,null,{"$f":"IF(OR(tarihk2=\"\",'راس گیری چک'!$O499=\"\"), \"\", Diff(tarihk2,'راس گیری چک'!$O499))","v":""}]
[null,null,null,null,null,{"$f":"IF(OR(tarikh=\"\",D500=\"\"), \"\", Diff(tarikh,D500 ))","v":""},null,null,null,null,null,null,null,null,null,null,{"$f":"IF(OR(tarihk2=\"\",'راس گیری چک'!$O500=\"\"), \"\", Diff(tarihk2,'راس گیری چک'!$O500))","v":""}]
[null,null,null,null,null,{"$f":"IF(OR(tarikh=\"\",D501=\"\"), \"\", Diff(tarikh,D501 ))","v":""},null,null,null,null,null,null,null,null,null,null,{"$f":"IF(OR(tarihk2=\"\",'راس گیری چک'!$O501=\"\"), \"\", Diff(tarihk2,'راس گیری چک'!$O501))","v":""}]
[null,null,null,null,null,{"$f":"IF(OR(tarikh=\"\",D502=\"\"), \"\", Diff(tarikh,D502 ))","v":""},null,null,null,null,null,null,null,null,null,null,{"$f":"IF(OR(tarihk2=\"\",'راس گیری چک'!$O502=\"\"), \"\", Diff(tarihk2,'راس گیری چک'!$O502))","v":""}]
[null,null,null,null,null,{"$f":"IF(OR(tarikh=\"\",D503=\"\"), \"\", Diff(tarikh,D503 ))","v":""},null,null,null,null,null,null,null,null,null,null,{"$f":"IF(OR(tarihk2=\"\",'راس گیری چک'!$O503=\"\"), \"\", Diff(tarihk2,'راس گیری چک'!$O503))","v":""}]
[null,null,null,null,null,{"$f":"IF(OR(tarikh=\"\",D504=\"\"), \"\", Diff(tarikh,D504 ))","v":""},null,null,null,null,null,null,null,null,null,null,{"$f":"IF(OR(tarihk2=\"\",'راس گیری چک'!$O504=\"\"), \"\", Diff(tarihk2,'راس گیری چک'!$O504))","v":""}]
[null,null,null,null,null,{"$f":"IF(OR(tarikh=\"\",D505=\"\"), \"\", Diff(tarikh,D505 ))","v":""},null,null,null,null,null,null,null,null,null,null,{"$f":"IF(OR(tarihk2=\"\",'راس گیری چک'!$O505=\"\"), \"\", Diff(tarihk2,'راس گیری چک'!$O505))","v":""}]
[null,null,null,null,null,{"$f":"IF(OR(tarikh=\"\",D506=\"\"), \"\", Diff(tarikh,D506 ))","v":""},null,null,null,null,null,null,null,null,null,null,{"$f":"IF(OR(tarihk2=\"\",'راس گیری چک'!$O506=\"\"), \"\", Diff(tarihk2,'راس گیری چک'!$O506))","v":""}]
[null,null,null,null,null,{"$f":"IF(OR(tarikh=\"\",D507=\"\"), \"\", Diff(tarikh,D507 ))","v":""},null,null,null,null,null,null,null,null,null,null,{"$f":"IF(OR(tarihk2=\"\",'راس گیری چک'!$O507=\"\"), \"\", Diff(tarihk2,'راس گیری چک'!$O507))","v":""}]
[null,null,null,null,null,{"$f":"IF(OR(tarikh=\"\",D508=\"\"), \"\", Diff(tarikh,D508 ))","v":""},null,null,null,null,null,null,null,null,null,null,{"$f":"IF(OR(tarihk2=\"\",'راس گیری چک'!$O508=\"\"), \"\", Diff(tarihk2,'راس گیری چک'!$O508))","v":""}]
[null,null,null,null,null,{"$f":"IF(OR(tarikh=\"\",D509=\"\"), \"\", Diff(tarikh,D509 ))","v":""},null,null,null,null,null,null,null,null,null,null,{"$f":"IF(OR(tarihk2=\"\",'راس گیری چک'!$O509=\"\"), \"\", Diff(tarihk2,'راس گیری چک'!$O509))","v":""}]
[null,null,null,null,null,{"$f":"IF(OR(tarikh=\"\",D510=\"\"), \"\", Diff(tarikh,D510 ))","v":""}]